Organisation Name (A),Department (B),Service Cat Label (C ),Purpose of Spend (D),Expenditure CIPFA Sub Group (E ),Supplier (F),Supplier Reference (G),Pay Date (H),Transaction Number (I),Net Amount (J),Grant to VCSE? (K),Charity Number (L),Card Transaction (M),Irrecoverable VAT (N)
Pendle Borough Council,Parks & Recreation Services,Premises Related Expense,Grounds : R & M : Day to Day : Routine,2101,BARNES JB LIMITED,A0000202, 25/06/2020,PCO0305656,19.46,N,,N,N/A
Pendle Borough Council,Parks & Recreation Services,Transport Related Expense,Tprt : Repairs : General,3105,BARNES JB LIMITED,A0000202, 11/06/2020,PCO0305436,30.52,N,,N,N/A
Pendle Borough Council,Parks & Recreation Services,Transport Related Expense,Tprt : Repairs : General,3105,BARNES JB LIMITED,A0000202, 11/06/2020,PCO0305442,38.32,N,,N,N/A
Pendle Borough Council,Parks & Recreation Services,Transport Related Expense,Tprt : Repairs : General,3105,BARNES JB LIMITED,A0000202, 11/06/2020,PCO0305443,19.15,N,,N,N/A
Pendle Borough Council,Parks & Recreation Services,Transport Related Expense,Tprt : Repairs : General,3105,BARNES JB LIMITED,A0000202, 11/06/2020,PCO0305442,19.15,N,,N,N/A
Pendle Borough Council,Parks & Recreation Services,Transport Related Expense,Tprt : Repairs : General,3105,BARNES JB LIMITED,A0000202, 11/06/2020,PCO0305443,19.16,N,,N,N/A
Pendle Borough Council,Parks & Recreation Services,Transport Related Expense,Tprt : Repairs : General,3105,BARNES JB LIMITED,A0000202, 11/06/2020,PCO0305442,19.15,N,,N,N/A
Pendle Borough Council,Parks & Recreation Services,Transport Related Expense,Tprt : Repairs : General,3105,BARNES JB LIMITED,A0000202, 11/06/2020,PCO0305442,19.15,N,,N,N/A
Pendle Borough Council,Parks & Recreation Services,Transport Related Expense,Tprt : Repairs : General,3105,BARNES JB LIMITED,A0000202, 11/06/2020,PCO0305442,19.15,N,,N,N/A
Pendle Borough Council,Operational Services,Supplies and Services,EFM Materials,4004,BARNES JB LIMITED,A0000202, 25/06/2020,OPS0305683,159.58,N,,N,N/A
Pendle Borough Council,Operational Services,Supplies and Services,EFM Materials,4004,BARNES JB LIMITED,A0000202, 18/06/2020,OPS0305574,8.07,N,,N,N/A
Pendle Borough Council,Parks & Recreation Services,Transport Related Expense,Hire of Plant,3502,BOC GASES LTD,A0000386, 11/06/2020,PCO0305427,21.10,N,,N,N/A
Pendle Borough Council,Parks & Recreation Services,Premises Related Expense,Grounds : R & M : Day to Day : Routine,2101,CB EXCAVATORS LTD,A0000396, 25/06/2020,PCO0305647,"2,700.00",N,,N,N/A
Pendle Borough Council,Parks & Recreation Services,Supplies and Services,Expenditure : Materials,0002,BARROWFORD SAFE & LOCK & BB LOCKSMITHS,A0000510, 25/06/2020,PCO0305644,14.60,N,,N,N/A
Pendle Borough Council,Parks & Recreation Services,Supplies and Services,Expenditure : Materials,0002,BARROWFORD SAFE & LOCK & BB LOCKSMITHS,A0000510, 25/06/2020,PCO0305645,86.57,N,,N,N/A
Pendle Borough Council,Parks & Recreation Services,Transport Related Expense,Tprt : Repairs : General,3105,BARROWFORD SAFE & LOCK & BB LOCKSMITHS,A0000510, 25/06/2020,PCO0305645,224.79,N,,N,N/A
Pendle Borough Council,Parks & Recreation Services,Transport Related Expense,Hire of Plant,3502,R J CLOUGH & SON LTD,A0000567, 25/06/2020,PCO0305653,29.60,N,,N,N/A
Pendle Borough Council,Parks & Recreation Services,Transport Related Expense,Hire of Plant,3502,R J CLOUGH & SON LTD,A0000567, 25/06/2020,PCO0305654,102.25,N,,N,N/A
Pendle Borough Council,Parks & Recreation Services,Transport Related Expense,Hire of Plant,3502,R J CLOUGH & SON LTD,A0000567, 04/06/2020,PCO0305291,172.44,N,,N,N/A
Pendle Borough Council,Parks & Recreation Services,Transport Related Expense,Hire of Plant,3502,R J CLOUGH & SON LTD,A0000567, 11/06/2020,PCO0305430,459.00,N,,N,N/A
Pendle Borough Council,Parks & Recreation Services,Transport Related Expense,Hire of Plant,3502,R J CLOUGH & SON LTD,A0000567, 11/06/2020,PCO0305440,798.00,N,,N,N/A
Pendle Borough Council,Housing Regeneration Services,Capital Costs,Capital : Payments,CD14,MARTIN COLLINS JOINERY & GLAZING,A0000623, 25/06/2020,HMR0305694,156.00,N,,N,N/A
Pendle Borough Council,Property Services,Premises Related Expense,Bldgs : R & M : Day To Day,2001,J DRIVER LTD,A0000884, 25/06/2020,EST0305668,64.60,N,,N,N/A
Pendle Borough Council,Property Services,Premises Related Expense,Bldgs : R & M : Day To Day,2001,J DRIVER LTD,A0000884, 25/06/2020,EST0305668,116.00,N,,N,N/A
Pendle Borough Council,Property Services,Premises Related Expense,Bldgs : R & M : Day To Day,2001,J DRIVER LTD,A0000884, 25/06/2020,EST0305668,120.48,N,,N,N/A
Pendle Borough Council,Property Services,Premises Related Expense,Grounds : R & M : Day to Day : Routine,2101,J DRIVER LTD,A0000884, 25/06/2020,EST0305668,47.20,N,,N,N/A
Pendle Borough Council,Property Services,Premises Related Expense,Grounds : R & M : Day to Day : Routine,2101,J DRIVER LTD,A0000884, 25/06/2020,EST0305668,169.28,N,,N,N/A
Pendle Borough Council,Property Services,Premises Related Expense,Gas,2202,J DRIVER LTD,A0000884, 25/06/2020,EST0305668,78.90,N,,N,N/A
Pendle Borough Council,Financial Services,Supplies and Services,Subscriptions & Donations,4706,DUN & BRADSTREET LIMITED,A0000895, 18/06/2020,AAS0305548,500.00,N,,N,N/A
Pendle Borough Council,Operational Services,Premises Related Expense,Bldgs : R & M : Day To Day,2001,ENGINEERING & FOUNDRY SUPPLIES,A0001002, 18/06/2020,OPS0305589,56.94,N,,N,N/A
Pendle Borough Council,Operational Services,Supplies and Services,EFM Materials,4004,ENGINEERING & FOUNDRY SUPPLIES,A0001002, 25/06/2020,OPS0305684,128.00,N,,N,N/A
Pendle Borough Council,Operational Services,Supplies and Services,EFM Materials,4004,ENGINEERING & FOUNDRY SUPPLIES,A0001002, 18/06/2020,OPS0305583,272.16,N,,N,N/A
Pendle Borough Council,Operational Services,Supplies and Services,EFM Materials,4004,ENGINEERING & FOUNDRY SUPPLIES,A0001002, 18/06/2020,OPS0305597,272.16,N,,N,N/A
Pendle Borough Council,Operational Services,Supplies and Services,EFM Materials,4004,ENGINEERING & FOUNDRY SUPPLIES,A0001002, 04/06/2020,OPS0305295,652.62,N,,N,N/A
Pendle Borough Council,Planning & Building Control,Supplies and Services,Protective Clothing,4201,ENGINEERING & FOUNDRY SUPPLIES,A0001002, 11/06/2020,PBC0305336,43.40,N,,N,N/A
Pendle Borough Council,Operational Services,,Stock : Purchases,PJ01,ENGINEERING & FOUNDRY SUPPLIES,A0001002, 11/06/2020,OPS0305414,240.00,N,,N,N/A
Pendle Borough Council,Operational Services,,Stock : Purchases,PJ01,ENGINEERING & FOUNDRY SUPPLIES,A0001002, 25/06/2020,OPS0305682,"1,807.31",N,,N,N/A
Pendle Borough Council,Housing Regeneration Services,Capital Costs,Capital : Payments,CD14,EARBY TOWN COUNCIL,A0001004, 11/06/2020,HMR0305355,"8,148.00",N,,N,N/A
Pendle Borough Council,Operational Services,Transport Related Expense,Tprt : Repairs : General,3105,FREIGHT TRANSPORT ASSOCIATION,A0001124, 11/06/2020,OPS0305417,54.81,N,,N,N/A
Pendle Borough Council,Parks & Recreation Services,Transport Related Expense,Tprt : Repairs : General,3105,GIBSONS GARDEN MACHINERY LTD,A0001201, 25/06/2020,PCO0305646,47.40,N,,N,N/A
Pendle Borough Council,Parks & Recreation Services,Transport Related Expense,Tprt : Repairs : General,3105,GIBSONS GARDEN MACHINERY LTD,A0001201, 11/06/2020,PCO0305435,789.64,N,,N,N/A
Pendle Borough Council,Parks & Recreation Services,Transport Related Expense,Tprt : Repairs : General,3105,GIBSONS GARDEN MACHINERY LTD,A0001201, 11/06/2020,PCO0305441,61.00,N,,N,N/A
Pendle Borough Council,Parks & Recreation Services,Transport Related Expense,Tprt : Repairs : General,3105,GIBSONS GARDEN MACHINERY LTD,A0001201, 11/06/2020,PCO0305433,85.39,N,,N,N/A
Pendle Borough Council,Parks & Recreation Services,Transport Related Expense,Tprt : Repairs : General,3105,GIBSONS GARDEN MACHINERY LTD,A0001201, 11/06/2020,PCO0305434,500.84,N,,N,N/A
Pendle Borough Council,Parks & Recreation Services,Premises Related Expense,Grounds : R & M : Day to Day : Routine,2101,LANLEE SUPPLIES LIMITED,A0001672, 04/06/2020,PCO0305287,358.20,N,,N,N/A
Pendle Borough Council,Parks & Recreation Services,Transport Related Expense,Tprt : Repairs : General,3105,REDACTED - PERSONAL DATA,A0001675, 11/06/2020,PCO0305426,102.81,N,,N,N/A
Pendle Borough Council,Parks & Recreation Services,Transport Related Expense,Tprt : Repairs : General,3105,REDACTED - PERSONAL DATA,A0001675, 04/06/2020,PCO0305292,384.44,N,,N,N/A
Pendle Borough Council,Parks & Recreation Services,Transport Related Expense,Tprt : Repairs : General,3105,REDACTED - PERSONAL DATA,A0001675, 11/06/2020,PCO0305444,41.90,N,,N,N/A
Pendle Borough Council,Parks & Recreation Services,Transport Related Expense,Tprt : Repairs : General,3105,REDACTED - PERSONAL DATA,A0001675, 04/06/2020,PCO0305292,18.56,N,,N,N/A
Pendle Borough Council,Operational Services,Premises Related Expense,Trade Refuse Charges,2602,LANCASHIRE COUNTY COUNCIL,A0001690, 11/06/2020,OPS0305416,"90,275.83",N,,N,N/A
Pendle Borough Council,Democratic & Legal Services,Supplies and Services,Search Fees,4404,LANCASHIRE COUNTY COUNCIL,A0001690, 18/06/2020,DAL0305544,78.00,N,,N,N/A
Pendle Borough Council,Planning & Building Control,Supplies and Services,Other Expenses,4705,LANCASHIRE COUNTY COUNCIL,A0001690, 18/06/2020,PBC0305527,"6,800.00",N,,N,N/A
Pendle Borough Council,Engineering & Special Projects,Capital Costs,Capital : Payments,CD14,LANCASHIRE COUNTY COUNCIL,A0001690, 18/06/2020,HED0305556,250.00,N,,N,N/A
Pendle Borough Council,Engineering & Special Projects,Capital Costs,Capital : Payments,CD14,LANCASHIRE COUNTY COUNCIL,A0001690, 18/06/2020,HED0305555,300.00,N,,N,N/A
Pendle Borough Council,Housing Regeneration Services,Capital Costs,Ren Grant : 1996 Act,CH22,LANCASHIRE COUNTY COUNCIL,A0001690, 25/06/2020,HMR0305692,927.00,N,,N,
Pendle Borough Council,Housing Regeneration Services,Capital Costs,Ren Grant : 1996 Act,CH22,LANCASHIRE COUNTY COUNCIL,A0001690, 11/06/2020,HMR0305352,"3,725.00",N,,N,
Pendle Borough Council,Housing Regeneration Services,Capital Costs,Ren Grant : 1996 Act,CH22,LANCASHIRE COUNTY COUNCIL,A0001690, 11/06/2020,HMR0305351,"13,795.00",N,,N,
Pendle Borough Council,Financial Services,Supplies and Services,Subscriptions & Donations,4706,LOCAL GOVERNMENT ASSOCIATION,A0001752, 01/06/2020,AAS0305703,"9,081.95",N,,N,N/A
Pendle Borough Council,Engineering & Special Projects,Premises Related Expense,Grounds : R & M : Day to Day : Routine,2101,MONK OF COLNE LTD,A0001828, 25/06/2020,HED0305696,495.00,N,,N,N/A
Pendle Borough Council,Engineering & Special Projects,Capital Costs,Capital : Payments,CD14,MONK OF COLNE LTD,A0001828, 04/06/2020,HED0305234,"9,236.35",N,,N,N/A
Pendle Borough Council,Engineering & Special Projects,,Paid in the Year,PD03,MONK OF COLNE LTD,A0001828, 04/06/2020,HED0305235,"2,283.00",N,,N,N/A
Pendle Borough Council,Operational Services,Premises Related Expense,Grounds : R & M : Day to Day : Routine,2101,JOHN MACADAM & SON (RESCUE) LTD,A0001846, 11/06/2020,OPS0305423,120.00,N,,N,N/A
Pendle Borough Council,Operational Services,Premises Related Expense,Grounds : R & M : Day to Day : Routine,2101,JOHN MACADAM & SON (RESCUE) LTD,A0001846, 25/06/2020,OPS0305679,120.00,N,,N,N/A
Pendle Borough Council,Operational Services,Premises Related Expense,Grounds : R & M : Day to Day : Routine,2101,JOHN MACADAM & SON (RESCUE) LTD,A0001846, 25/06/2020,OPS0305680,120.00,N,,N,N/A
Pendle Borough Council,Operational Services,Premises Related Expense,Grounds : R & M : Day to Day : Routine,2101,JOHN MACADAM & SON (RESCUE) LTD,A0001846, 25/06/2020,OPS0305681,120.00,N,,N,N/A
Pendle Borough Council,Operational Services,Premises Related Expense,Grounds : R & M : Day to Day : Routine,2101,JOHN MACADAM & SON (RESCUE) LTD,A0001846, 11/06/2020,OPS0305418,250.00,N,,N,N/A
Pendle Borough Council,Planning & Building Control,Supplies and Services,Grants/Contributions,4739,REDACTED - PERSONAL DATA,A0001974, 11/06/2020,PBC0305334,100.00,N,,N,N/A
Pendle Borough Council,Planning & Building Control,Supplies and Services,Grants/Contributions,4739,REDACTED - PERSONAL DATA,A0001974, 11/06/2020,PBC0305333,200.00,N,,N,N/A
Pendle Borough Council,Property Services,Premises Related Expense,Bldgs : R & M : Day To Day,2001,F NUTTER & SONS,A0002037, 18/06/2020,EST0305606,39.69,N,,N,N/A
Pendle Borough Council,Property Services,Premises Related Expense,Bldgs : R & M : Day To Day,2001,F NUTTER & SONS,A0002037, 18/06/2020,EST0305606,78.00,N,,N,N/A
Pendle Borough Council,Parks & Recreation Services,Premises Related Expense,Bldgs : R & M : Day To Day,2001,OPTION HYGIENE LIMITED,A0002063, 04/06/2020,PCO0305288,6.93,N,,N,N/A
Pendle Borough Council,Operational Services,Supplies and Services,EFM Materials,4004,OPTION HYGIENE LIMITED,A0002063, 18/06/2020,OPS0305590,13.90,N,,N,N/A
Pendle Borough Council,Operational Services,Supplies and Services,EFM Materials,4004,OPTION HYGIENE LIMITED,A0002063, 04/06/2020,OPS0305294,29.70,N,,N,N/A
Pendle Borough Council,Operational Services,Supplies and Services,EFM Materials,4004,OPTION HYGIENE LIMITED,A0002063, 18/06/2020,OPS0305587,60.00,N,,N,N/A
Pendle Borough Council,Operational Services,Supplies and Services,EFM Materials,4004,OPTION HYGIENE LIMITED,A0002063, 11/06/2020,OPS0305413,94.50,N,,N,N/A
Pendle Borough Council,Parks & Recreation Services,Transport Related Expense,Tprt : Repairs : General,3105,POWER PIPES (PENDLE) LIMITED,A0002089, 25/06/2020,PCO0305643,58.30,N,,N,N/A
Pendle Borough Council,Parks & Recreation Services,Transport Related Expense,Tprt : Repairs : General,3105,SPALDINGS (UK) LTD,A0002537, 18/06/2020,PCO0305566,52.00,N,,N,N/A
Pendle Borough Council,Parks & Recreation Services,Transport Related Expense,Tprt : Repairs : General,3105,SPALDINGS (UK) LTD,A0002537, 18/06/2020,PCO0305565,213.00,N,,N,N/A
Pendle Borough Council,Engineering & Special Projects,Capital Costs,Capital : Payments,CD14,T & F STEEL DESIGNS LTD,A0002627, 25/06/2020,HED0305699,160.00,N,,N,N/A
Pendle Borough Council,Engineering & Special Projects,Capital Costs,Capital : Payments,CD14,T & F STEEL DESIGNS LTD,A0002627, 25/06/2020,HED0305699,640.00,N,,N,N/A
Pendle Borough Council,Democratic & Legal Services,Supplies and Services,Other Expenses,4705,JOHNSONS TEXICARE LTD,A0002665, 04/06/2020,DAL0305243,123.75,N,,N,N/A
Pendle Borough Council,Operational Services,Agency Staff,Emp : Agency Wages,1004,DHRB LIMITED T/A DRIVER HIRE (45680),A0003556, 18/06/2020,OPS4006212,-136.06,N,,N,N/A
Pendle Borough Council,Operational Services,Agency Staff,Emp : Agency Wages,1004,DHRB LIMITED T/A DRIVER HIRE (45680),A0003556, 18/06/2020,OPS0305596,"1,200.74",N,,N,N/A
Pendle Borough Council,Operational Services,Agency Staff,Emp : Agency Wages,1004,DHRB LIMITED T/A DRIVER HIRE (45680),A0003556, 18/06/2020,OPS4006212,-136.06,N,,N,N/A
Pendle Borough Council,Operational Services,Agency Staff,Emp : Agency Wages,1004,DHRB LIMITED T/A DRIVER HIRE (45680),A0003556, 11/06/2020,OPS0305424,478.16,N,,N,N/A
Pendle Borough Council,Operational Services,Agency Staff,Emp : Agency Wages,1004,DHRB LIMITED T/A DRIVER HIRE (45680),A0003556, 11/06/2020,OPS0305420,575.35,N,,N,N/A
Pendle Borough Council,Operational Services,Agency Staff,Emp : Agency Wages,1004,DHRB LIMITED T/A DRIVER HIRE (45680),A0003556, 18/06/2020,OPS0305570,684.15,N,,N,N/A
Pendle Borough Council,Operational Services,Agency Staff,Emp : Agency Wages,1004,DHRB LIMITED T/A DRIVER HIRE (45680),A0003556, 18/06/2020,OPS0305596,"1,084.86",N,,N,N/A
Pendle Borough Council,Democratic & Legal Services,Supplies and Services,Mobile Phones,4508,EE LIMITED,A0004680, 04/06/2020,DAL0305190,346.00,N,,N,N/A
Pendle Borough Council,Financial Services,Supplies and Services,Mobile Phones,4508,EE LIMITED,A0004680, 25/06/2020,AAS0305641,5.00,N,,N,N/A
Pendle Borough Council,Operational Services,Transport Related Expense,Diesel Oil,3202,CERTAS ENERGY UK T/A TOWNSON BROS,A0005683, 18/06/2020,OPS0305569,"1,364.30",N,,N,N/A
Pendle Borough Council,Parks & Recreation Services,Transport Related Expense,Diesel Oil,3202,CERTAS ENERGY UK T/A TOWNSON BROS,A0005683, 18/06/2020,PCO0305562,"1,598.37",N,,N,N/A
Pendle Borough Council,Parks & Recreation Services,Transport Related Expense,Tprt : Annual Hire Charge,3601,F G ROWLAND LIMITED,A0006489, 11/06/2020,PCO0305437,"1,534.00",N,,N,N/A
Pendle Borough Council,Democratic & Legal Services,Indirect Employee Expenses,Staff Refreshments,1261,REDACTED - PERSONAL DATA,A0006611, 11/06/2020,DAL0305383,17.92,N,,N,N/A
Pendle Borough Council,Democratic & Legal Services,Supplies and Services,Hospitality,4611,REDACTED - PERSONAL DATA,A0006611, 11/06/2020,DAL0305383,22.10,N,,N,N/A
Pendle Borough Council,Engineering & Special Projects,Supplies and Services,Printing & Stationery,4301,NLA MEDIA ACCESS LIMITED,A0012340, 04/06/2020,HED0305185,752.00,N,,N,N/A
Pendle Borough Council,Operational Services,Premises Related Expense,Funded Ground Mtnce Works,2105,PENDLE LEISURE LIMITED,A0012961, 18/06/2020,OPS0305591,450.00,N,XR43029,N,N/A
Pendle Borough Council,Parks & Recreation Services,Agency Staff,Emp : Agency Wages,1004,LANDSCAPE ENGINEERING LTD,A0013135, 25/06/2020,PCO0305649,"3,572.00",N,,N,N/A
Pendle Borough Council,Parks & Recreation Services,Agency Staff,Emp : Agency Wages,1004,LANDSCAPE ENGINEERING LTD,A0013135, 25/06/2020,PCO0305651,"4,794.00",N,,N,N/A
Pendle Borough Council,Parks & Recreation Services,Supplies and Services,Sub-Contractors,4007,LANDSCAPE ENGINEERING LTD,A0013135, 25/06/2020,PCO0305648,"3,260.00",N,,N,N/A
Pendle Borough Council,Parks & Recreation Services,Supplies and Services,Sub-Contractors,4007,LANDSCAPE ENGINEERING LTD,A0013135, 25/06/2020,PCO0305650,"4,190.00",N,,N,N/A
Pendle Borough Council,Engineering & Special Projects,Premises Related Expense,Bldgs : R & M : Day To Day,2001,WILLIAM SMITH GROUP 1832 LIMITED,A0013824, 04/06/2020,HED0305176,257.32,N,,N,N/A
Pendle Borough Council,Financial Services,Supplies and Services,Subscriptions & Donations,4706,CANAL & RIVER TRUST,A0015306, 04/06/2020,AAS0305224,"10,000.00",N,1146792,N,N/A
Pendle Borough Council,Operational Services,Agency Staff,Emp : Agency Wages,1004,ORCHARD RECYCLING SERVICE,A0015803, 18/06/2020,OPS0305594,"2,132.90",N,,N,N/A
Pendle Borough Council,Operational Services,Supplies and Services,Sub-Contractors,4007,ORCHARD RECYCLING SERVICE,A0015803, 04/06/2020,OPS0305298,"1,663.20",N,,N,N/A
Pendle Borough Council,Operational Services,Supplies and Services,Sub-Contractors,4007,ORCHARD RECYCLING SERVICE,A0015803, 11/06/2020,OPS0305425,"1,986.60",N,,N,N/A
Pendle Borough Council,Operational Services,Supplies and Services,Sub-Contractors,4007,ORCHARD RECYCLING SERVICE,A0015803, 25/06/2020,OPS0305686,"2,433.20",N,,N,N/A
Pendle Borough Council,Operational Services,Supplies and Services,Miscellaneous : Other,4707,ORCHARD RECYCLING SERVICE,A0015803, 04/06/2020,OPS0305298,250.00,N,,N,N/A
Pendle Borough Council,Operational Services,Supplies and Services,Miscellaneous : Other,4707,ORCHARD RECYCLING SERVICE,A0015803, 25/06/2020,OPS0305686,313.25,N,,N,N/A
Pendle Borough Council,Operational Services,Supplies and Services,Miscellaneous : Other,4707,ORCHARD RECYCLING SERVICE,A0015803, 18/06/2020,OPS0305594,318.50,N,,N,N/A
Pendle Borough Council,Operational Services,Supplies and Services,Miscellaneous : Other,4707,ORCHARD RECYCLING SERVICE,A0015803, 11/06/2020,OPS0305425,341.50,N,,N,N/A
Pendle Borough Council,Operational Services,Agency Costs,Fast Action Response,5009,ORCHARD RECYCLING SERVICE,A0015803, 04/06/2020,OPS0305298,250.00,N,,N,N/A
Pendle Borough Council,Operational Services,Agency Costs,Fast Action Response,5009,ORCHARD RECYCLING SERVICE,A0015803, 25/06/2020,OPS0305686,313.25,N,,N,N/A
Pendle Borough Council,Operational Services,Agency Costs,Fast Action Response,5009,ORCHARD RECYCLING SERVICE,A0015803, 18/06/2020,OPS0305594,318.50,N,,N,N/A
Pendle Borough Council,Operational Services,Agency Costs,Fast Action Response,5009,ORCHARD RECYCLING SERVICE,A0015803, 11/06/2020,OPS0305425,341.50,N,,N,N/A
Pendle Borough Council,Human Resources,Indirect Employee Expenses,Recruitment,1221,CHARTERED INST OF ENV HEALTH,A0020604, 25/06/2020,PER0305631,450.00,N,,N,N/A
Pendle Borough Council,Human Resources,Supplies and Services,Consultants Fees,4401,CHARTERED INST OF ENV HEALTH,A0020604, 25/06/2020,PER0305631,450.00,N,,N,N/A
Pendle Borough Council,Housing Regeneration Services,Supplies and Services,Other Expenses,4705,CHARTERED INST OF ENV HEALTH,A0020604, 18/06/2020,HMR0305494,515.00,N,,N,N/A
Pendle Borough Council,Operational Services,Premises Related Expense,Bldgs : R & M : Day To Day,2001,SAANRO INTERNATIONAL LTD,A0021480, 11/06/2020,OPS0305412,686.68,N,,N,N/A
Pendle Borough Council,Operational Services,Supplies and Services,Sub-Contractors,4007,ASPEN VALLEY KENNELS & CATTERY,A0022106, 18/06/2020,OPS0305572,650.00,N,,N,N/A
Pendle Borough Council,Operational Services,Supplies and Services,Other Expenses,4705,ASPEN VALLEY KENNELS & CATTERY,A0022106, 18/06/2020,OPS0305572,780.60,N,,N,N/A
Pendle Borough Council,Engineering & Special Projects,Premises Related Expense,Grounds : R & M : Day to Day : Routine,2101,E.ON,A0023073, 11/06/2020,HED0305397,607.57,N,,N,N/A
Pendle Borough Council,Property Services,Premises Related Expense,Gas,2202,E.ON,A0023073, 11/06/2020,EST0305400,28.02,N,,N,N/A
Pendle Borough Council,Property Services,Premises Related Expense,Electricity,2203,E.ON,A0023073, 11/06/2020,EST0305398,1.86,N,,N,N/A
Pendle Borough Council,Property Services,Premises Related Expense,Electricity,2203,E.ON,A0023073, 04/06/2020,EST0305299,20.13,N,,N,N/A
Pendle Borough Council,Democratic & Legal Services,Premises Related Expense,Rents,2301,E.ON,A0023073, 11/06/2020,DAL0305381,31.05,N,,N,N/A
Pendle Borough Council,Engineering & Special Projects,Premises Related Expense,Grounds : R & M : Day to Day : Routine,2101,LITE,A0040032, 25/06/2020,HED0305633,125.00,N,,N,N/A
Pendle Borough Council,Democratic & Legal Services,Supplies and Services,EFM : Photocopiers,4001,CANON (UK) LIMITED,A0040400, 04/06/2020,DAL0305242,79.44,N,,N,N/A
Pendle Borough Council,Democratic & Legal Services,Supplies and Services,Printing & Stationery,4301,CIVICA ELECTION SERVICES,A0041321, 04/06/2020,DAL0305187,207.60,N,,N,N/A
Pendle Borough Council,Democratic & Legal Services,Supplies and Services,Printing & Stationery,4301,CIVICA ELECTION SERVICES,A0041321, 04/06/2020,DAL0305232,"1,994.88",N,,N,N/A
Pendle Borough Council,Democratic & Legal Services,Supplies and Services,Printing & Stationery,4301,CIVICA ELECTION SERVICES,A0041321, 04/06/2020,DAL0305232,"2,393.85",N,,N,N/A
Pendle Borough Council,Democratic & Legal Services,Supplies and Services,Postages,4501,CIVICA ELECTION SERVICES,A0041321, 04/06/2020,DAL0305187,269.88,N,,N,N/A
Pendle Borough Council,Parks & Recreation Services,Transport Related Expense,Tprt : Repairs : General,3105,REDACTED - PERSONAL DATA,A0043864, 11/06/2020,PCO0305428,80.00,N,,N,N/A
Pendle Borough Council,Operational Services,Supplies and Services,Sub-Contractors,4007,S M SHEPHERD BUILDING CONTRACTORS,A0044037, 25/06/2020,OPS0305676,50.00,N,,N,N/A
Pendle Borough Council,Operational Services,Supplies and Services,Sub-Contractors,4007,S M SHEPHERD BUILDING CONTRACTORS,A0044037, 25/06/2020,OPS0305678,90.00,N,,N,N/A
Pendle Borough Council,Operational Services,,Paid in the Year,PD03,S M SHEPHERD BUILDING CONTRACTORS,A0044037, 25/06/2020,OPS0305677,180.00,N,,N,N/A
Pendle Borough Council,Property Services,Premises Related Expense,Electricity,2203,E.ON UK PLC,A0044040, 18/06/2020,EST0305603,320.06,N,,N,N/A
Pendle Borough Council,Financial Services,,Other Income : Non-VATable,9303,BURNLEY BOROUGH COUNCIL,A0044855, 25/06/2020,AAS0305636,386.80,N,,N,N/A
Pendle Borough Council,Planning & Building Control,Supplies and Services,Other Expenses,4705,MARKETING LANCASHIRE LIMITED,A0045273, 25/06/2020,PBC0305632,"4,000.00",N,,N,N/A
Pendle Borough Council,Planning & Building Control,Supplies and Services,Subscriptions & Donations,4706,MARKETING LANCASHIRE LIMITED,A0045273, 25/06/2020,PBC0305632,"2,400.00",N,,N,N/A
Pendle Borough Council,Financial Services,Premises Related Expense,Bldgs : R & M : Day To Day,2001,PLUSNET TECHNOLOGIES LIMITED,A0045646, 02/06/2020,AAS0305704,15.00,N,,N,N/A
Pendle Borough Council,Planning & Building Control,Supplies and Services,EFM : Other Equipment,4003,VIP SYSTEM LIMITED,A0050529, 18/06/2020,PBC0305529,557.28,N,,N,N/A
Pendle Borough Council,Planning & Building Control,Supplies and Services,EFM : Other Equipment,4003,VIP SYSTEM LIMITED,A0050529, 18/06/2020,PBC0305529,278.63,N,,N,N/A
Pendle Borough Council,Financial Services,Agency Staff,Emp : Overtime,1021,LIBERATA UK LTD,A0051618, 25/06/2020,AAS0305639,"2,210.17",N,,N,N/A
Pendle Borough Council,Financial Services,Premises Related Expense,Rents,2301,LIBERATA UK LTD,A0051618, 11/06/2020,AAS0305386,839.59,N,,N,N/A
Pendle Borough Council,Financial Services,Premises Related Expense,Rents,2301,LIBERATA UK LTD,A0051618, 11/06/2020,AAS0305386,"1,043.33",N,,N,N/A
Pendle Borough Council,Engineering & Special Projects,Supplies and Services,Consultants Fees,4401,LIBERATA UK LTD,A0051618, 11/06/2020,HED4006209,"-1,527.50",N,,N,N/A
Pendle Borough Council,Engineering & Special Projects,Supplies and Services,Other Expenses,4705,LIBERATA UK LTD,A0051618, 11/06/2020,HED4006209,"-1,450.00",N,,N,N/A
Pendle Borough Council,Operational Services,Supplies and Services,Miscellaneous : Other,4707,LIBERATA UK LTD,A0051618, 18/06/2020,OPS0305592,"2,228.68",N,,N,N/A
Pendle Borough Council,Financial Services,Agency Costs,Liberata,5301,LIBERATA UK LTD,A0051618, 25/06/2020,AAS0305638,"-2,800.00",N,,N,N/A
Pendle Borough Council,Financial Services,Agency Costs,Liberata,5301,LIBERATA UK LTD,A0051618, 04/06/2020,AAS0305218,475.00,N,,N,N/A
Pendle Borough Council,Financial Services,Agency Costs,Liberata,5301,LIBERATA UK LTD,A0051618, 04/06/2020,AAS0305216,"3,750.00",N,,N,N/A
Pendle Borough Council,Financial Services,Agency Costs,Liberata,5301,LIBERATA UK LTD,A0051618, 25/06/2020,AAS0305638,"5,000.00",N,,N,N/A
Pendle Borough Council,Financial Services,Agency Costs,Liberata,5301,LIBERATA UK LTD,A0051618, 04/06/2020,AAS0305220,"1,749.00",N,,N,N/A
Pendle Borough Council,Financial Services,Agency Costs,Liberata,5301,LIBERATA UK LTD,A0051618, 04/06/2020,AAS0305217,"6,015.32",N,,N,N/A
Pendle Borough Council,Financial Services,Agency Costs,Liberata,5301,LIBERATA UK LTD,A0051618, 04/06/2020,AAS0305219,"9,494.00",N,,N,N/A
Pendle Borough Council,Financial Services,Agency Costs,Liberata,5301,LIBERATA UK LTD,A0051618, 04/06/2020,AAS0305221,"13,404.00",N,,N,N/A
Pendle Borough Council,Financial Services,Agency Costs,Liberata,5301,LIBERATA UK LTD,A0051618, 25/06/2020,AAS0305640,"2,509.08",N,,N,N/A
Pendle Borough Council,Financial Services,Agency Costs,#N/A,5303,LIBERATA UK LTD,A0051618, 11/06/2020,AAS0305387,"39,535.66",N,,N,N/A
Pendle Borough Council,Financial Services,Agency Costs,#N/A,5303,LIBERATA UK LTD,A0051618, 11/06/2020,AAS0305389,"6,666.67",N,,N,N/A
Pendle Borough Council,Financial Services,Agency Costs,#N/A,5303,LIBERATA UK LTD,A0051618, 11/06/2020,AAS0305389,"35,903.69",N,,N,N/A
Pendle Borough Council,Financial Services,Agency Costs,#N/A,5303,LIBERATA UK LTD,A0051618, 11/06/2020,AAS0305389,"28,189.74",N,,N,N/A
Pendle Borough Council,Financial Services,Agency Costs,#N/A,5303,LIBERATA UK LTD,A0051618, 11/06/2020,AAS0305389,"81,006.65",N,,N,N/A
Pendle Borough Council,Financial Services,Agency Costs,#N/A,5303,LIBERATA UK LTD,A0051618, 11/06/2020,AAS0305389,"55,872.47",N,,N,N/A
Pendle Borough Council,Financial Services,Agency Costs,#N/A,5303,LIBERATA UK LTD,A0051618, 11/06/2020,AAS0305389,"82,761.12",N,,N,N/A
Pendle Borough Council,Financial Services,Agency Costs,#N/A,5303,LIBERATA UK LTD,A0051618, 11/06/2020,AAS0305389,"125,118.52",N,,N,N/A
Pendle Borough Council,Financial Services,Capital Costs,Capital : Salaries,CD13,LIBERATA UK LTD,A0051618, 04/06/2020,AAS0305222,"8,500.73",N,,N,N/A
Pendle Borough Council,Human Resources,Supplies and Services,Other Expenses,4705,FIDELITI LIMITED,A0052058, 11/06/2020,PER0305343,5.40,N,,N,N/A
Pendle Borough Council,Operational Services,Capital Costs,Capital : Payments,CD14,MGB PLASTICS LIMITED,A0052535, 18/06/2020,OPS0305588,"1,640.00",N,,N,N/A
Pendle Borough Council,Operational Services,Capital Costs,Capital : Payments,CD14,MGB PLASTICS LIMITED,A0052535, 25/06/2020,OPS0305685,"9,840.00",N,,N,N/A
Pendle Borough Council,Democratic & Legal Services,Supplies and Services,Seminars etc All Costs,4601,REDACTED - PERSONAL DATA,A0054205, 11/06/2020,DAL0305332,19.60,N,,N,N/A
Pendle Borough Council,Property Services,Indirect Employee Expenses,Staff Refreshments,1261,SIEMENS FINANCIAL SERVICES LIMITED,A0054268, 25/06/2020,EST0305664,310.00,N,,N,N/A
Pendle Borough Council,Engineering & Special Projects,Premises Related Expense,Grounds : R & M : Day to Day : Routine,2101,KEVIN GUY PLANT HIRE,A0054367, 04/06/2020,HED0305233,240.00,N,,N,N/A
Pendle Borough Council,Financial Services,Supplies and Services,Consultants Fees,4401,LINK TREASURY SERVICES LIMITED,A0055209, 25/06/2020,AAS0305637,"4,000.00",N,,N,N/A
Pendle Borough Council,Property Services,Premises Related Expense,Electricity,2203,BRITISH GAS,A0057202, 11/06/2020,EST0305404,22.22,N,,N,N/A
Pendle Borough Council,Property Services,Premises Related Expense,Electricity,2203,BRITISH GAS,A0057202, 04/06/2020,EST0305306,14.11,N,,N,N/A
Pendle Borough Council,Engineering & Special Projects,Capital Costs,Capital : Payments,CD14,ALKINCOATES WOODLAND & NATURE RESERVE GRP,A0057349, 11/06/2020,HED0305411,"2,100.00",N,,N,N/A
Pendle Borough Council,Financial Services,Supplies and Services,Computer Charges,4509,CIVICA UK LIMITED,A0057596, 04/06/2020,AAS0305223,"2,267.11",N,,N,N/A
Pendle Borough Council,Democratic & Legal Services,Supplies and Services,Seminars etc All Costs,4601,CIVICA UK LIMITED,A0057596, 25/06/2020,DAL0305695,50.00,N,,N,N/A
Pendle Borough Council,Operational Services,Transport Related Expense,Tprt : Repairs : General,3105,UNITED UTILITIES,A0059246, 18/06/2020,OPS0305573,27.89,N,,N,N/A
Pendle Borough Council,Operational Services,Transport Related Expense,Tprt : Repairs : General,3105,UNITED UTILITIES,A0059246, 18/06/2020,OPS0305573,19.38,N,,N,N/A
Pendle Borough Council,Democratic & Legal Services,Agency Costs,Lancashire C C,5102,NSL LIMITED,A0059256, 04/06/2020,DAL0305241,"1,593.54",N,,N,N/A
Pendle Borough Council,Democratic & Legal Services,Supplies and Services,Adverts : Statutory Notice,4702,JPIMEDIA PUBLISHING LIMITED,A0059640, 04/06/2020,DAL0305244,194.40,N,,N,N/A
Pendle Borough Council,Democratic & Legal Services,Supplies and Services,Adverts : Statutory Notice,4702,JPIMEDIA PUBLISHING LIMITED,A0059640, 18/06/2020,DAL0305543,194.40,N,,N,N/A
Pendle Borough Council,Democratic & Legal Services,Supplies and Services,Adverts : Statutory Notice,4702,JPIMEDIA PUBLISHING LIMITED,A0059640, 04/06/2020,DAL0305189,243.00,N,,N,N/A
Pendle Borough Council,Housing Regeneration Services,Supplies and Services,Adverts : Statutory Notice,4702,JPIMEDIA PUBLISHING LIMITED,A0059640, 25/06/2020,HMR0305691,267.30,N,,N,N/A
Pendle Borough Council,Housing Regeneration Services,Supplies and Services,Adverts : Statutory Notice,4702,JPIMEDIA PUBLISHING LIMITED,A0059640, 25/06/2020,HMR0305688,461.70,N,,N,N/A
Pendle Borough Council,Democratic & Legal Services,,Fees Income : Non-VATable,9302,JPIMEDIA PUBLISHING LIMITED,A0059640, 04/06/2020,DAL0305188,340.20,N,,N,N/A
Pendle Borough Council,Housing Regeneration Services,Transfer Payments,Accommodation ,6103,HILL VIEW (PRIVATE) HOTEL,A0059754, 11/06/2020,HMR0305385,"4,310.00",N,,N,N/A
Pendle Borough Council,Property Services,Supplies and Services,Other Expenses,4705,MAXIGIENE ENVIRONMENTAL SERVICES LTD,A0060911, 04/06/2020,EST0305300,140.00,N,,N,N/A
Pendle Borough Council,Parks & Recreation Services,Premises Related Expense,Bldgs : R & M : Day To Day,2001,MAS SEEDS LIMITED,A0061618, 25/06/2020,PCO0305655,110.00,N,,N,N/A
Pendle Borough Council,Housing Regeneration Services,Supplies and Services,Seminars etc All Costs,4601,SEFTON M B C,A0061779, 25/06/2020,HMR0305689,500.00,N,,N,N/A
Pendle Borough Council,Financial Services,Transport Related Expense,Tprt : Annual Hire Charge,3601,ARVAL LTD (ALLSTAR FUEL SERVICES),A0062668, 15/06/2020,AAS0305705,107.83,N,,N,N/A
Pendle Borough Council,Housing Regeneration Services,Capital Costs,Ren Grant : 1996 Act,CH22,ATM CONSTRUCTION LTD,A0066308, 11/06/2020,HMR0305353,"27,434.70",N,,N,
Pendle Borough Council,Human Resources,Transport Related Expense,Tprt : Annual Hire Charge,3601,LEX AUTOLEASE LIMITED,A0066530, 11/06/2020,PER0305345,"4,116.48",N,,N,N/A
Pendle Borough Council,Property Services,Premises Related Expense,Bldgs : R & M : Day To Day,2001,SPEAKMAN CONTRACTORS LTD,A0066581, 11/06/2020,EST0305408,710.50,N,,N,N/A
Pendle Borough Council,Property Services,Premises Related Expense,Bldgs : R & M : Day To Day,2001,SPEAKMAN CONTRACTORS LTD,A0066581, 11/06/2020,EST0305408,49.00,N,,N,N/A
Pendle Borough Council,Property Services,Premises Related Expense,Bldgs : R & M : Day To Day,2001,SPEAKMAN CONTRACTORS LTD,A0066581, 11/06/2020,EST0305408,68.34,N,,N,N/A
Pendle Borough Council,Property Services,Premises Related Expense,Bldgs : R & M : Day To Day,2001,SPEAKMAN CONTRACTORS LTD,A0066581, 11/06/2020,EST0305408,693.00,N,,N,N/A
Pendle Borough Council,Housing Regeneration Services,Capital Costs,Ren Grant : 1996 Act,CH22,SPEAKMAN CONTRACTORS LTD,A0066581, 25/06/2020,HMR0305690,"6,519.00",N,,N,
Pendle Borough Council,Planning & Building Control,Supplies and Services,Reference Books Acts,4304,HAYMARKET MEDIA GROUP LIMITED,A0066977, 18/06/2020,PBC0305497,"1,950.00",N,,N,N/A
Pendle Borough Council,Human Resources,Indirect Employee Expenses,Emp : Medical Expenses,1236,PEOPLE ASSET MANAGEMENT LIMITED,A0067613, 25/06/2020,PER0305630,68.25,N,,N,N/A
Pendle Borough Council,Operational Services,Transport Related Expense,Tprt : Repairs : General,3105,PROBRUSH T/A NORTHERN MUNICIPAL SPARES LTD,A0068263, 04/06/2020,OPS0305296,165.18,N,,N,N/A
Pendle Borough Council,Operational Services,Transport Related Expense,Tprt : Repairs : General,3105,PROBRUSH T/A NORTHERN MUNICIPAL SPARES LTD,A0068263, 04/06/2020,OPS0305296,165.18,N,,N,N/A
Pendle Borough Council,Operational Services,Transport Related Expense,Tprt : Repairs : General,3105,PROBRUSH T/A NORTHERN MUNICIPAL SPARES LTD,A0068263, 04/06/2020,OPS0305296,165.18,N,,N,N/A
Pendle Borough Council,Operational Services,Transport Related Expense,Tprt : Repairs : General,3105,PROBRUSH T/A NORTHERN MUNICIPAL SPARES LTD,A0068263, 04/06/2020,OPS0305296,165.18,N,,N,N/A
Pendle Borough Council,Operational Services,Transport Related Expense,Tprt : Repairs : General,3105,PROBRUSH T/A NORTHERN MUNICIPAL SPARES LTD,A0068263, 04/06/2020,OPS0305296,165.18,N,,N,N/A
Pendle Borough Council,Operational Services,Transport Related Expense,Tprt : Repairs : General,3105,PROBRUSH T/A NORTHERN MUNICIPAL SPARES LTD,A0068263, 04/06/2020,OPS0305296,165.17,N,,N,N/A
Pendle Borough Council,Housing Regeneration Services,Supplies and Services,Processing Fees,4424,CHIPSIDE LTD,A0068587, 11/06/2020,HMR0305354,3.24,N,,N,N/A
Pendle Borough Council,Engineering & Special Projects,Supplies and Services,Processing Fees,4424,CHIPSIDE LTD,A0068587, 04/06/2020,HED0305184,19.20,N,,N,N/A
Pendle Borough Council,Parks & Recreation Services,Supplies and Services,Expenditure : Materials,0002,M C & M A STEWART HAULAGE,A0068863, 18/06/2020,PCO0305559,494.90,N,,N,N/A
Pendle Borough Council,Parks & Recreation Services,Premises Related Expense,Grounds : R & M : Day to Day : Routine,2101,M C & M A STEWART HAULAGE,A0068863, 18/06/2020,PCO0305559,437.97,N,,N,N/A
Pendle Borough Council,Parks & Recreation Services,Premises Related Expense,Grounds : R & M : Day to Day : Routine,2101,M C & M A STEWART HAULAGE,A0068863, 18/06/2020,PCO0305560,451.80,N,,N,N/A
Pendle Borough Council,Parks & Recreation Services,Premises Related Expense,Grounds : R & M : Day to Day : Routine,2101,M C & M A STEWART HAULAGE,A0068863, 11/06/2020,PCO0305438,492.21,N,,N,N/A
Pendle Borough Council,Parks & Recreation Services,Premises Related Expense,Grounds : R & M : Day to Day : Routine,2101,M C & M A STEWART HAULAGE,A0068863, 18/06/2020,PCO0305561,330.00,N,,N,N/A
Pendle Borough Council,Parks & Recreation Services,Supplies and Services,Expenditure : Materials,0002,SHERRIFF AMENITY - AGROVISTA UK LIMITED,A0068904, 11/06/2020,PCO0305439,238.00,N,,N,N/A
Pendle Borough Council,Housing Regeneration Services,Supplies and Services,Seminars etc All Costs,4601,RH ENVIRONMENTAL LTD,A0069532, 11/06/2020,HMR0305358,180.00,N,,N,N/A
Pendle Borough Council,Financial Services,Premises Related Expense,Electricity,2203,BRITISH GAS BUSINESS,A0069538, 25/06/2020,AAS0305720,11.30,N,,N,N/A
Pendle Borough Council,Financial Services,Premises Related Expense,Electricity,2203,BRITISH GAS BUSINESS,A0069538, 16/06/2020,AAS0305706,93.28,N,,N,N/A
Pendle Borough Council,Financial Services,Premises Related Expense,Electricity,2203,BRITISH GAS BUSINESS,A0069538, 04/06/2020,AAS0305971,57.88,N,,N,N/A
Pendle Borough Council,Engineering & Special Projects,Capital Costs,Capital : Payments,CD14,PWA GEO-ENVIRONMENTAL LIMITED,A0069766, 25/06/2020,HED0305698,"5,672.00",N,,N,N/A
Pendle Borough Council,Engineering & Special Projects,Capital Costs,Capital : Payments,CD14,PWA GEO-ENVIRONMENTAL LIMITED,A0069766, 11/06/2020,HED0305394,"6,438.00",N,,N,N/A
Pendle Borough Council,Engineering & Special Projects,Capital Costs,Capital : Payments,CD14,PWA GEO-ENVIRONMENTAL LIMITED,A0069766, 04/06/2020,HED0305236,"1,507.50",N,,N,N/A
Pendle Borough Council,Housing Regeneration Services,Supplies and Services,EFM : Office and computer equipment,4002,REDACTED - PERSONAL DATA,A0069967, 18/06/2020,HMR0305495,4.79,N,,N,N/A
Pendle Borough Council,Parks & Recreation Services,Transport Related Expense,Tprt : Repairs : General,3105,GUY MACHINERY LIMITED,A0070711, 11/06/2020,PCO4006175,-193.90,N,,N,N/A
Pendle Borough Council,Parks & Recreation Services,Transport Related Expense,Tprt : Repairs : General,3105,GUY MACHINERY LIMITED,A0070711, 11/06/2020,PCO0302139,146.37,N,,N,N/A
Pendle Borough Council,Parks & Recreation Services,Transport Related Expense,Tprt : Repairs : General,3105,GUY MACHINERY LIMITED,A0070711, 11/06/2020,PCO4006175,-5.27,N,,N,N/A
Pendle Borough Council,Parks & Recreation Services,Transport Related Expense,Tprt : Repairs : General,3105,GUY MACHINERY LIMITED,A0070711, 11/06/2020,PCO0302139,15.50,N,,N,N/A
Pendle Borough Council,Parks & Recreation Services,Transport Related Expense,Tprt : Repairs : General,3105,GUY MACHINERY LIMITED,A0070711, 11/06/2020,PCO0302139,30.00,N,,N,N/A
Pendle Borough Council,Parks & Recreation Services,Transport Related Expense,Tprt : Repairs : General,3105,GUY MACHINERY LIMITED,A0070711, 11/06/2020,PCO0302139,7.30,N,,N,N/A
Pendle Borough Council,Financial Services,Supplies and Services,Sub-Contractors,4007,QHS SOLUTIONS LIMITED,A0071912, 01/06/2020,AAS0305702,644.44,N,,N,N/A
Pendle Borough Council,Planning & Building Control,Supplies and Services,Consultants Fees,4401,LABC,A0072264, 18/06/2020,PBC0305530,"2,060.06",N,,N,N/A
Pendle Borough Council,Financial Services,Support Services,Bank Charges,7201,LLOYDS BANK PLC,A0072462, 16/06/2020,AAS0305953,4.60,N,,N,N/A
Pendle Borough Council,Financial Services,Support Services,Bank Charges,7201,LLOYDS BANK PLC,A0072462, 26/06/2020,AAS0305725,15.00,N,,N,N/A
Pendle Borough Council,Financial Services,Support Services,Bank Charges,7201,LLOYDS BANK PLC,A0072462, 26/06/2020,AAS0305725,70.00,N,,N,N/A
Pendle Borough Council,Financial Services,Support Services,Bank Charges,7201,LLOYDS BANK PLC,A0072462, 16/06/2020,AAS0305954,997.61,N,,N,N/A
Pendle Borough Council,Human Resources,Supplies and Services,EFM : Other Equipment,4003,CYCLESCHEME LTD,A0072578, 11/06/2020,PER0305390,833.33,N,,N,N/A
Pendle Borough Council,Human Resources,Supplies and Services,EFM : Other Equipment,4003,CYCLESCHEME LTD,A0072578, 18/06/2020,PER0305524,"1,250.00",N,,N,N/A
Pendle Borough Council,Financial Services,Indirect Employee Expenses,Recruitment,1221,DBS,A0072958, 18/06/2020,AAS0305707,80.00,N,,N,N/A
Pendle Borough Council,Financial Services,Supplies and Services,Credit card and online charges,4421,LLOYDS BANK CARDNET,A0074460, 11/06/2020,AAS0305957,133.22,N,,N,N/A
Pendle Borough Council,Financial Services,Supplies and Services,Credit card and online charges,4421,LLOYDS BANK CARDNET,A0074460, 11/06/2020,AAS0305955,621.99,N,,N,N/A
Pendle Borough Council,Financial Services,Supplies and Services,Credit card and online charges,4421,LLOYDS BANK CARDNET,A0074460, 11/06/2020,AAS0305956,"1,434.55",N,,N,N/A
Pendle Borough Council,Democratic & Legal Services,Supplies and Services,Consultants Fees,4401,C & C PROCESS SERVERS,A0074728, 11/06/2020,DAL0305337,85.00,N,,N,N/A
Pendle Borough Council,Democratic & Legal Services,Supplies and Services,Printing & Stationery,4301,THOMSON REUTERS PROFESSIONAL UK LIMITED,A0077400, 11/06/2020,DAL0305331,132.50,N,,N,N/A
Pendle Borough Council,Democratic & Legal Services,Supplies and Services,Printing & Stationery,4301,THOMSON REUTERS PROFESSIONAL UK LIMITED,A0077400, 11/06/2020,DAL0305331,132.50,N,,N,N/A
Pendle Borough Council,Housing Regeneration Services,Supplies and Services,Grant Funding,4737,REDACTED - PERSONAL DATA,A0081553, 18/06/2020,HMR0305492,"20,073.00",N,1088536,N,N/A
Pendle Borough Council,Planning & Building Control,,Other Income : Non-VATable,9303,INSTITUTE OF LICENSING LIMITED,A0082227, 18/06/2020,PBC0305528,82.00,N,,N,N/A
Pendle Borough Council,Housing Regeneration Services,Capital Costs,Capital : Payments,CD14,BARROWFORD CRICKET CLUB,A0082512, 18/06/2020,HMR0305496,"1,300.00",N,,N,N/A
Pendle Borough Council,Financial Services,Support Services,District Audit Fees,7202,GRANT THORNTON UK LLP,A0084044, 18/06/2020,AAS0305547,"6,900.00",N,,N,N/A
Pendle Borough Council,Financial Services,Support Services,District Audit Fees,7202,GRANT THORNTON UK LLP,A0084044, 18/06/2020,AAS0305547,"7,821.25",N,,N,N/A
Pendle Borough Council,Financial Services,Supplies and Services,Allpay,4422,ALLPAY LIMITED,A0084372, 04/06/2020,AAS0305226,10.00,N,,N,N/A
Pendle Borough Council,Financial Services,Supplies and Services,Allpay,4422,ALLPAY LIMITED,A0084372, 04/06/2020,AAS0305230,14.21,N,,N,N/A
Pendle Borough Council,Financial Services,Supplies and Services,Allpay,4422,ALLPAY LIMITED,A0084372, 04/06/2020,AAS0305225,24.10,N,,N,N/A
Pendle Borough Council,Financial Services,Supplies and Services,Allpay,4422,ALLPAY LIMITED,A0084372, 04/06/2020,AAS0305229,64.32,N,,N,N/A
Pendle Borough Council,Financial Services,Supplies and Services,Allpay,4422,ALLPAY LIMITED,A0084372, 04/06/2020,AAS0305227,269.23,N,,N,N/A
Pendle Borough Council,Financial Services,Supplies and Services,Allpay,4422,ALLPAY LIMITED,A0084372, 04/06/2020,AAS0305228,"1,890.08",N,,N,N/A
Pendle Borough Council,Engineering & Special Projects,Capital Costs,Ren Grant : 1996 Act,CH22,ELITE PLUMBING,A0084584, 04/06/2020,HED0305183,"1,340.00",N,,N,
Pendle Borough Council,Engineering & Special Projects,Premises Related Expense,Grounds : R & M : Day to Day : Routine,2101,KEVIN WILKINSON LANDSCAPES LTD,A0085660, 11/06/2020,HED0305391,678.60,N,,N,N/A
Pendle Borough Council,Engineering & Special Projects,Premises Related Expense,Grounds : R & M : Day to Day : Routine,2101,MARCHBRIDGE BUILDERS LIMITED,A0087284, 18/06/2020,HED0305554,"3,485.63",N,,N,N/A
Pendle Borough Council,Engineering & Special Projects,Premises Related Expense,Grounds : R & M : Day to Day : Routine,2101,MARCHBRIDGE BUILDERS LIMITED,A0087284, 18/06/2020,HED0305557,"3,712.13",N,,N,N/A
Pendle Borough Council,Engineering & Special Projects,Premises Related Expense,Grounds : R & M : Day to Day : Routine,2101,MARCHBRIDGE BUILDERS LIMITED,A0087284, 18/06/2020,HED0305557,"3,000.00",N,,N,N/A
Pendle Borough Council,Engineering & Special Projects,Supplies and Services,Other Expenses,4705,PRINTDESIGNS LIMITED,A0088150, 11/06/2020,HED0305410,190.00,N,,N,N/A
Pendle Borough Council,Financial Services,Supplies and Services,Consultants Fees,4401,AURORA ACCOUNTING SERVICES,A0089134, 18/06/2020,AAS0305545,"1,715.00",N,,N,N/A
Pendle Borough Council,Operational Services,Indirect Employee Expenses,Lone Worker Monitoring Service,1270,SOLOPROTECT LIMITED,A0089719, 18/06/2020,OPS0305580,11.62,N,,N,N/A
Pendle Borough Council,Operational Services,Indirect Employee Expenses,Lone Worker Monitoring Service,1270,SOLOPROTECT LIMITED,A0089719, 04/06/2020,OPS0305293,414.75,N,,N,N/A
Pendle Borough Council,Engineering & Special Projects,Supplies and Services,Other Expenses,4705,SOLOPROTECT LIMITED,A0089719, 04/06/2020,HED0305186,46.48,N,,N,N/A
Pendle Borough Council,Engineering & Special Projects,Capital Costs,Capital : Payments,CD14,O`CALLAGHAN LIMITED,A0090052, 11/06/2020,HED0305395,"36,307.82",N,,N,N/A
Pendle Borough Council,Parks & Recreation Services,Premises Related Expense,Grounds : R & M : Day to Day : Routine,2101,REDACTED - PERSONAL DATA,A0090177, 11/06/2020,PCO0305432,345.00,N,,N,N/A
Pendle Borough Council,Financial Services,Transport Related Expense,Diesel Oil,3202,FUELMATE LTD,A0090265, 09/06/2020,AAS0305973,38.07,N,,N,N/A
Pendle Borough Council,Financial Services,Transport Related Expense,Diesel Oil,3202,FUELMATE LTD,A0090265, 16/06/2020,AAS0305991,38.51,N,,N,N/A
Pendle Borough Council,Financial Services,Transport Related Expense,Diesel Oil,3202,FUELMATE LTD,A0090265, 09/06/2020,AAS0305973,39.99,N,,N,N/A
Pendle Borough Council,Financial Services,Transport Related Expense,Diesel Oil,3202,FUELMATE LTD,A0090265, 23/06/2020,AAS0306195,40.48,N,,N,N/A
Pendle Borough Council,Financial Services,Transport Related Expense,Diesel Oil,3202,FUELMATE LTD,A0090265, 02/06/2020,AAS0305972,48.12,N,,N,N/A
Pendle Borough Council,Financial Services,Transport Related Expense,Diesel Oil,3202,FUELMATE LTD,A0090265, 09/06/2020,AAS0305973,49.21,N,,N,N/A
Pendle Borough Council,Financial Services,Transport Related Expense,Diesel Oil,3202,FUELMATE LTD,A0090265, 30/06/2020,AAS0306196,53.01,N,,N,N/A
Pendle Borough Council,Financial Services,Transport Related Expense,Diesel Oil,3202,FUELMATE LTD,A0090265, 30/06/2020,AAS0306196,57.18,N,,N,N/A
Pendle Borough Council,Financial Services,Transport Related Expense,Diesel Oil,3202,FUELMATE LTD,A0090265, 30/06/2020,AAS0306196,57.46,N,,N,N/A
Pendle Borough Council,Financial Services,Transport Related Expense,Diesel Oil,3202,FUELMATE LTD,A0090265, 02/06/2020,AAS0305972,67.93,N,,N,N/A
Pendle Borough Council,Financial Services,Transport Related Expense,Diesel Oil,3202,FUELMATE LTD,A0090265, 09/06/2020,AAS0305973,79.49,N,,N,N/A
Pendle Borough Council,Financial Services,Transport Related Expense,Diesel Oil,3202,FUELMATE LTD,A0090265, 09/06/2020,AAS0305973,174.12,N,,N,N/A
Pendle Borough Council,Financial Services,Transport Related Expense,Diesel Oil,3202,FUELMATE LTD,A0090265, 23/06/2020,AAS0306195,179.71,N,,N,N/A
Pendle Borough Council,Financial Services,Transport Related Expense,Diesel Oil,3202,FUELMATE LTD,A0090265, 30/06/2020,AAS0306196,240.77,N,,N,N/A
Pendle Borough Council,Financial Services,Transport Related Expense,Diesel Oil,3202,FUELMATE LTD,A0090265, 16/06/2020,AAS0305991,304.48,N,,N,N/A
Pendle Borough Council,Financial Services,Transport Related Expense,Diesel Oil,3202,FUELMATE LTD,A0090265, 02/06/2020,AAS0305972,346.53,N,,N,N/A
Pendle Borough Council,Financial Services,Transport Related Expense,Diesel Oil,3202,FUELMATE LTD,A0090265, 30/06/2020,AAS0306196,203.53,N,,N,N/A
Pendle Borough Council,Financial Services,Transport Related Expense,Diesel Oil,3202,FUELMATE LTD,A0090265, 16/06/2020,AAS0305991,212.13,N,,N,N/A
Pendle Borough Council,Financial Services,Transport Related Expense,Diesel Oil,3202,FUELMATE LTD,A0090265, 09/06/2020,AAS0305973,227.35,N,,N,N/A
Pendle Borough Council,Financial Services,Transport Related Expense,Diesel Oil,3202,FUELMATE LTD,A0090265, 23/06/2020,AAS0306195,232.98,N,,N,N/A
Pendle Borough Council,Financial Services,Transport Related Expense,Diesel Oil,3202,FUELMATE LTD,A0090265, 02/06/2020,AAS0305972,246.27,N,,N,N/A
Pendle Borough Council,Financial Services,Transport Related Expense,Diesel Oil,3202,FUELMATE LTD,A0090265, 09/06/2020,AAS0305973,113.60,N,,N,N/A
Pendle Borough Council,Financial Services,Transport Related Expense,Diesel Oil,3202,FUELMATE LTD,A0090265, 02/06/2020,AAS0305972,178.37,N,,N,N/A
Pendle Borough Council,Financial Services,Transport Related Expense,Diesel Oil,3202,FUELMATE LTD,A0090265, 16/06/2020,AAS0305991,233.97,N,,N,N/A
Pendle Borough Council,Financial Services,Transport Related Expense,Diesel Oil,3202,FUELMATE LTD,A0090265, 23/06/2020,AAS0306195,251.14,N,,N,N/A
Pendle Borough Council,Financial Services,Transport Related Expense,Diesel Oil,3202,FUELMATE LTD,A0090265, 30/06/2020,AAS0306196,277.32,N,,N,N/A
Pendle Borough Council,Financial Services,Transport Related Expense,Diesel Oil,3202,FUELMATE LTD,A0090265, 09/06/2020,AAS0305973,163.62,N,,N,N/A
Pendle Borough Council,Financial Services,Transport Related Expense,Diesel Oil,3202,FUELMATE LTD,A0090265, 30/06/2020,AAS0306196,174.54,N,,N,N/A
Pendle Borough Council,Financial Services,Transport Related Expense,Diesel Oil,3202,FUELMATE LTD,A0090265, 02/06/2020,AAS0305972,227.47,N,,N,N/A
Pendle Borough Council,Financial Services,Transport Related Expense,Diesel Oil,3202,FUELMATE LTD,A0090265, 23/06/2020,AAS0306195,229.37,N,,N,N/A
Pendle Borough Council,Financial Services,Transport Related Expense,Diesel Oil,3202,FUELMATE LTD,A0090265, 16/06/2020,AAS0305991,234.44,N,,N,N/A
Pendle Borough Council,Financial Services,Transport Related Expense,Diesel Oil,3202,FUELMATE LTD,A0090265, 30/06/2020,AAS0306196,196.61,N,,N,N/A
Pendle Borough Council,Financial Services,Transport Related Expense,Diesel Oil,3202,FUELMATE LTD,A0090265, 09/06/2020,AAS0305973,210.54,N,,N,N/A
Pendle Borough Council,Financial Services,Transport Related Expense,Diesel Oil,3202,FUELMATE LTD,A0090265, 02/06/2020,AAS0305972,211.94,N,,N,N/A
Pendle Borough Council,Financial Services,Transport Related Expense,Diesel Oil,3202,FUELMATE LTD,A0090265, 16/06/2020,AAS0305991,215.05,N,,N,N/A
Pendle Borough Council,Financial Services,Transport Related Expense,Diesel Oil,3202,FUELMATE LTD,A0090265, 23/06/2020,AAS0306195,224.91,N,,N,N/A
Pendle Borough Council,Financial Services,Transport Related Expense,Diesel Oil,3202,FUELMATE LTD,A0090265, 16/06/2020,AAS0305991,157.41,N,,N,N/A
Pendle Borough Council,Financial Services,Transport Related Expense,Diesel Oil,3202,FUELMATE LTD,A0090265, 09/06/2020,AAS0305973,162.50,N,,N,N/A
Pendle Borough Council,Financial Services,Transport Related Expense,Diesel Oil,3202,FUELMATE LTD,A0090265, 02/06/2020,AAS0305972,165.57,N,,N,N/A
Pendle Borough Council,Financial Services,Transport Related Expense,Diesel Oil,3202,FUELMATE LTD,A0090265, 23/06/2020,AAS0306195,173.46,N,,N,N/A
Pendle Borough Council,Financial Services,Transport Related Expense,Diesel Oil,3202,FUELMATE LTD,A0090265, 30/06/2020,AAS0306196,183.75,N,,N,N/A
Pendle Borough Council,Financial Services,Transport Related Expense,Diesel Oil,3202,FUELMATE LTD,A0090265, 09/06/2020,AAS0305973,16.76,N,,N,N/A
Pendle Borough Council,Financial Services,Transport Related Expense,Diesel Oil,3202,FUELMATE LTD,A0090265, 30/06/2020,AAS0306196,33.11,N,,N,N/A
Pendle Borough Council,Financial Services,Transport Related Expense,Diesel Oil,3202,FUELMATE LTD,A0090265, 23/06/2020,AAS0306195,36.19,N,,N,N/A
Pendle Borough Council,Financial Services,Transport Related Expense,Diesel Oil,3202,FUELMATE LTD,A0090265, 23/06/2020,AAS0306195,46.00,N,,N,N/A
Pendle Borough Council,Financial Services,Transport Related Expense,Diesel Oil,3202,FUELMATE LTD,A0090265, 23/06/2020,AAS0306195,53.25,N,,N,N/A
Pendle Borough Council,Financial Services,Transport Related Expense,Diesel Oil,3202,FUELMATE LTD,A0090265, 30/06/2020,AAS0306196,72.86,N,,N,N/A
Pendle Borough Council,Financial Services,Transport Related Expense,Diesel Oil,3202,FUELMATE LTD,A0090265, 23/06/2020,AAS0306195,76.66,N,,N,N/A
Pendle Borough Council,Financial Services,Transport Related Expense,Diesel Oil,3202,FUELMATE LTD,A0090265, 02/06/2020,AAS0305972,79.49,N,,N,N/A
Pendle Borough Council,Financial Services,Transport Related Expense,Diesel Oil,3202,FUELMATE LTD,A0090265, 30/06/2020,AAS0306196,81.38,N,,N,N/A
Pendle Borough Council,Financial Services,Transport Related Expense,Diesel Oil,3202,FUELMATE LTD,A0090265, 09/06/2020,AAS0305973,167.63,N,,N,N/A
Pendle Borough Council,Financial Services,Transport Related Expense,Diesel Oil,3202,FUELMATE LTD,A0090265, 02/06/2020,AAS0305972,210.64,N,,N,N/A
Pendle Borough Council,Financial Services,Transport Related Expense,Diesel Oil,3202,FUELMATE LTD,A0090265, 23/06/2020,AAS0306195,216.91,N,,N,N/A
Pendle Borough Council,Financial Services,Transport Related Expense,Diesel Oil,3202,FUELMATE LTD,A0090265, 30/06/2020,AAS0306196,224.50,N,,N,N/A
Pendle Borough Council,Financial Services,Transport Related Expense,Diesel Oil,3202,FUELMATE LTD,A0090265, 16/06/2020,AAS0305991,252.98,N,,N,N/A
Pendle Borough Council,Financial Services,Transport Related Expense,Diesel Oil,3202,FUELMATE LTD,A0090265, 16/06/2020,AAS0305991,143.12,N,,N,N/A
Pendle Borough Council,Financial Services,Transport Related Expense,Diesel Oil,3202,FUELMATE LTD,A0090265, 30/06/2020,AAS0306196,144.82,N,,N,N/A
Pendle Borough Council,Financial Services,Transport Related Expense,Diesel Oil,3202,FUELMATE LTD,A0090265, 09/06/2020,AAS0305973,157.94,N,,N,N/A
Pendle Borough Council,Financial Services,Transport Related Expense,Diesel Oil,3202,FUELMATE LTD,A0090265, 02/06/2020,AAS0305972,208.33,N,,N,N/A
Pendle Borough Council,Financial Services,Transport Related Expense,Diesel Oil,3202,FUELMATE LTD,A0090265, 23/06/2020,AAS0306195,208.99,N,,N,N/A
Pendle Borough Council,Financial Services,Transport Related Expense,Diesel Oil,3202,FUELMATE LTD,A0090265, 02/06/2020,AAS0305972,150.63,N,,N,N/A
Pendle Borough Council,Financial Services,Transport Related Expense,Diesel Oil,3202,FUELMATE LTD,A0090265, 23/06/2020,AAS0306195,159.62,N,,N,N/A
Pendle Borough Council,Financial Services,Transport Related Expense,Diesel Oil,3202,FUELMATE LTD,A0090265, 30/06/2020,AAS0306196,173.84,N,,N,N/A
Pendle Borough Council,Financial Services,Transport Related Expense,Diesel Oil,3202,FUELMATE LTD,A0090265, 09/06/2020,AAS0305973,178.17,N,,N,N/A
Pendle Borough Council,Financial Services,Transport Related Expense,Diesel Oil,3202,FUELMATE LTD,A0090265, 16/06/2020,AAS0305991,225.46,N,,N,N/A
Pendle Borough Council,Financial Services,Transport Related Expense,Diesel Oil,3202,FUELMATE LTD,A0090265, 02/06/2020,AAS0305972,100.68,N,,N,N/A
Pendle Borough Council,Financial Services,Transport Related Expense,Diesel Oil,3202,FUELMATE LTD,A0090265, 30/06/2020,AAS0306196,138.81,N,,N,N/A
Pendle Borough Council,Financial Services,Transport Related Expense,Diesel Oil,3202,FUELMATE LTD,A0090265, 09/06/2020,AAS0305973,206.65,N,,N,N/A
Pendle Borough Council,Financial Services,Transport Related Expense,Diesel Oil,3202,FUELMATE LTD,A0090265, 16/06/2020,AAS0305991,221.54,N,,N,N/A
Pendle Borough Council,Financial Services,Transport Related Expense,Diesel Oil,3202,FUELMATE LTD,A0090265, 23/06/2020,AAS0306195,233.30,N,,N,N/A
Pendle Borough Council,Financial Services,Transport Related Expense,Diesel Oil,3202,FUELMATE LTD,A0090265, 30/06/2020,AAS0306196,131.31,N,,N,N/A
Pendle Borough Council,Financial Services,Transport Related Expense,Diesel Oil,3202,FUELMATE LTD,A0090265, 16/06/2020,AAS0305991,153.84,N,,N,N/A
Pendle Borough Council,Financial Services,Transport Related Expense,Diesel Oil,3202,FUELMATE LTD,A0090265, 09/06/2020,AAS0305973,189.43,N,,N,N/A
Pendle Borough Council,Financial Services,Transport Related Expense,Diesel Oil,3202,FUELMATE LTD,A0090265, 02/06/2020,AAS0305972,203.72,N,,N,N/A
Pendle Borough Council,Financial Services,Transport Related Expense,Diesel Oil,3202,FUELMATE LTD,A0090265, 23/06/2020,AAS0306195,261.48,N,,N,N/A
Pendle Borough Council,Financial Services,Transport Related Expense,Diesel Oil,3202,FUELMATE LTD,A0090265, 09/06/2020,AAS0305973,113.90,N,,N,N/A
Pendle Borough Council,Financial Services,Transport Related Expense,Diesel Oil,3202,FUELMATE LTD,A0090265, 23/06/2020,AAS0306195,152.92,N,,N,N/A
Pendle Borough Council,Financial Services,Transport Related Expense,Diesel Oil,3202,FUELMATE LTD,A0090265, 16/06/2020,AAS0305991,186.27,N,,N,N/A
Pendle Borough Council,Financial Services,Transport Related Expense,Diesel Oil,3202,FUELMATE LTD,A0090265, 30/06/2020,AAS0306196,228.94,N,,N,N/A
Pendle Borough Council,Financial Services,Transport Related Expense,Diesel Oil,3202,FUELMATE LTD,A0090265, 02/06/2020,AAS0305972,317.74,N,,N,N/A
Pendle Borough Council,Financial Services,Transport Related Expense,Diesel Oil,3202,FUELMATE LTD,A0090265, 30/06/2020,AAS0306196,122.29,N,,N,N/A
Pendle Borough Council,Financial Services,Transport Related Expense,Diesel Oil,3202,FUELMATE LTD,A0090265, 09/06/2020,AAS0305973,139.93,N,,N,N/A
Pendle Borough Council,Financial Services,Transport Related Expense,Diesel Oil,3202,FUELMATE LTD,A0090265, 16/06/2020,AAS0305991,146.62,N,,N,N/A
Pendle Borough Council,Financial Services,Transport Related Expense,Diesel Oil,3202,FUELMATE LTD,A0090265, 23/06/2020,AAS0306195,184.65,N,,N,N/A
Pendle Borough Council,Financial Services,Transport Related Expense,Diesel Oil,3202,FUELMATE LTD,A0090265, 02/06/2020,AAS0305972,216.43,N,,N,N/A
Pendle Borough Council,Financial Services,Transport Related Expense,Diesel Oil,3202,FUELMATE LTD,A0090265, 30/06/2020,AAS0306196,102.84,N,,N,N/A
Pendle Borough Council,Financial Services,Transport Related Expense,Diesel Oil,3202,FUELMATE LTD,A0090265, 02/06/2020,AAS0305972,116.54,N,,N,N/A
Pendle Borough Council,Financial Services,Transport Related Expense,Diesel Oil,3202,FUELMATE LTD,A0090265, 23/06/2020,AAS0306195,54.70,N,,N,N/A
Pendle Borough Council,Financial Services,Transport Related Expense,Diesel Oil,3202,FUELMATE LTD,A0090265, 30/06/2020,AAS0306196,55.89,N,,N,N/A
Pendle Borough Council,Financial Services,Transport Related Expense,Diesel Oil,3202,FUELMATE LTD,A0090265, 09/06/2020,AAS0305973,73.03,N,,N,N/A
Pendle Borough Council,Financial Services,Transport Related Expense,Diesel Oil,3202,FUELMATE LTD,A0090265, 16/06/2020,AAS0305991,107.85,N,,N,N/A
Pendle Borough Council,Financial Services,Transport Related Expense,Diesel Oil,3202,FUELMATE LTD,A0090265, 02/06/2020,AAS0305972,138.50,N,,N,N/A
Pendle Borough Council,Financial Services,Transport Related Expense,Diesel Oil,3202,FUELMATE LTD,A0090265, 02/06/2020,AAS0305972,58.60,N,,N,N/A
Pendle Borough Council,Financial Services,Transport Related Expense,Diesel Oil,3202,FUELMATE LTD,A0090265, 23/06/2020,AAS0306195,96.99,N,,N,N/A
Pendle Borough Council,Financial Services,Transport Related Expense,Diesel Oil,3202,FUELMATE LTD,A0090265, 30/06/2020,AAS0306196,112.62,N,,N,N/A
Pendle Borough Council,Financial Services,Transport Related Expense,Diesel Oil,3202,FUELMATE LTD,A0090265, 09/06/2020,AAS0305973,141.79,N,,N,N/A
Pendle Borough Council,Financial Services,Transport Related Expense,Diesel Oil,3202,FUELMATE LTD,A0090265, 16/06/2020,AAS0305991,148.15,N,,N,N/A
Pendle Borough Council,Financial Services,Transport Related Expense,Diesel Oil,3202,FUELMATE LTD,A0090265, 30/06/2020,AAS0306196,74.46,N,,N,N/A
Pendle Borough Council,Financial Services,Transport Related Expense,Diesel Oil,3202,FUELMATE LTD,A0090265, 02/06/2020,AAS0305972,127.01,N,,N,N/A
Pendle Borough Council,Financial Services,Transport Related Expense,Diesel Oil,3202,FUELMATE LTD,A0090265, 16/06/2020,AAS0305991,128.45,N,,N,N/A
Pendle Borough Council,Financial Services,Transport Related Expense,Diesel Oil,3202,FUELMATE LTD,A0090265, 09/06/2020,AAS0305973,130.89,N,,N,N/A
Pendle Borough Council,Financial Services,Transport Related Expense,Diesel Oil,3202,FUELMATE LTD,A0090265, 23/06/2020,AAS0306195,140.26,N,,N,N/A
Pendle Borough Council,Financial Services,Transport Related Expense,Diesel Oil,3202,FUELMATE LTD,A0090265, 02/06/2020,AAS0305972,99.74,N,,N,N/A
Pendle Borough Council,Financial Services,Transport Related Expense,Diesel Oil,3202,FUELMATE LTD,A0090265, 09/06/2020,AAS0305973,145.74,N,,N,N/A
Pendle Borough Council,Financial Services,Transport Related Expense,Diesel Oil,3202,FUELMATE LTD,A0090265, 16/06/2020,AAS0305991,147.59,N,,N,N/A
Pendle Borough Council,Financial Services,Transport Related Expense,Diesel Oil,3202,FUELMATE LTD,A0090265, 30/06/2020,AAS0306196,149.10,N,,N,N/A
Pendle Borough Council,Financial Services,Transport Related Expense,Diesel Oil,3202,FUELMATE LTD,A0090265, 23/06/2020,AAS0306195,155.64,N,,N,N/A
Pendle Borough Council,Financial Services,Transport Related Expense,Diesel Oil,3202,FUELMATE LTD,A0090265, 16/06/2020,AAS0305991,118.84,N,,N,N/A
Pendle Borough Council,Financial Services,Transport Related Expense,Diesel Oil,3202,FUELMATE LTD,A0090265, 09/06/2020,AAS0305973,122.44,N,,N,N/A
Pendle Borough Council,Financial Services,Transport Related Expense,Diesel Oil,3202,FUELMATE LTD,A0090265, 30/06/2020,AAS0306196,122.92,N,,N,N/A
Pendle Borough Council,Financial Services,Transport Related Expense,Diesel Oil,3202,FUELMATE LTD,A0090265, 23/06/2020,AAS0306195,123.29,N,,N,N/A
Pendle Borough Council,Financial Services,Transport Related Expense,Diesel Oil,3202,FUELMATE LTD,A0090265, 02/06/2020,AAS0305972,125.15,N,,N,N/A
Pendle Borough Council,Financial Services,Transport Related Expense,Diesel Oil,3202,FUELMATE LTD,A0090265, 16/06/2020,AAS0305991,56.44,N,,N,N/A
Pendle Borough Council,Financial Services,Transport Related Expense,Diesel Oil,3202,FUELMATE LTD,A0090265, 02/06/2020,AAS0305972,81.08,N,,N,N/A
Pendle Borough Council,Financial Services,Transport Related Expense,Diesel Oil,3202,FUELMATE LTD,A0090265, 23/06/2020,AAS0306195,108.17,N,,N,N/A
Pendle Borough Council,Financial Services,Transport Related Expense,Diesel Oil,3202,FUELMATE LTD,A0090265, 30/06/2020,AAS0306196,117.51,N,,N,N/A
Pendle Borough Council,Financial Services,Transport Related Expense,Diesel Oil,3202,FUELMATE LTD,A0090265, 09/06/2020,AAS0305973,149.24,N,,N,N/A
Pendle Borough Council,Financial Services,Transport Related Expense,Diesel Oil,3202,FUELMATE LTD,A0090265, 02/06/2020,AAS0305972,56.28,N,,N,N/A
Pendle Borough Council,Financial Services,Transport Related Expense,Diesel Oil,3202,FUELMATE LTD,A0090265, 16/06/2020,AAS0305991,59.42,N,,N,N/A
Pendle Borough Council,Financial Services,Transport Related Expense,Diesel Oil,3202,FUELMATE LTD,A0090265, 30/06/2020,AAS0306196,60.29,N,,N,N/A
Pendle Borough Council,Financial Services,Transport Related Expense,Diesel Oil,3202,FUELMATE LTD,A0090265, 23/06/2020,AAS0306195,64.72,N,,N,N/A
Pendle Borough Council,Financial Services,Transport Related Expense,Diesel Oil,3202,FUELMATE LTD,A0090265, 16/06/2020,AAS0305991,29.64,N,,N,N/A
Pendle Borough Council,Financial Services,Transport Related Expense,Diesel Oil,3202,FUELMATE LTD,A0090265, 16/06/2020,AAS0305991,60.79,N,,N,N/A
Pendle Borough Council,Financial Services,Transport Related Expense,Diesel Oil,3202,FUELMATE LTD,A0090265, 02/06/2020,AAS0305972,32.57,N,,N,N/A
Pendle Borough Council,Financial Services,Transport Related Expense,Diesel Oil,3202,FUELMATE LTD,A0090265, 16/06/2020,AAS0305991,73.14,N,,N,N/A
Pendle Borough Council,Financial Services,Transport Related Expense,Diesel Oil,3202,FUELMATE LTD,A0090265, 09/06/2020,AAS0305973,76.29,N,,N,N/A
Pendle Borough Council,Financial Services,Transport Related Expense,Diesel Oil,3202,FUELMATE LTD,A0090265, 30/06/2020,AAS0306196,84.66,N,,N,N/A
Pendle Borough Council,Financial Services,Transport Related Expense,Diesel Oil,3202,FUELMATE LTD,A0090265, 23/06/2020,AAS0306195,29.85,N,,N,N/A
Pendle Borough Council,Financial Services,Transport Related Expense,Diesel Oil,3202,FUELMATE LTD,A0090265, 02/06/2020,AAS0305972,32.04,N,,N,N/A
Pendle Borough Council,Financial Services,Transport Related Expense,Diesel Oil,3202,FUELMATE LTD,A0090265, 16/06/2020,AAS0305991,32.89,N,,N,N/A
Pendle Borough Council,Financial Services,Transport Related Expense,Diesel Oil,3202,FUELMATE LTD,A0090265, 09/06/2020,AAS0305973,53.91,N,,N,N/A
Pendle Borough Council,Financial Services,Transport Related Expense,Diesel Oil,3202,FUELMATE LTD,A0090265, 30/06/2020,AAS0306196,84.32,N,,N,N/A
Pendle Borough Council,Financial Services,Transport Related Expense,Diesel Oil,3202,FUELMATE LTD,A0090265, 09/06/2020,AAS0305973,31.90,N,,N,N/A
Pendle Borough Council,Financial Services,Transport Related Expense,Diesel Oil,3202,FUELMATE LTD,A0090265, 30/06/2020,AAS0306196,34.16,N,,N,N/A
Pendle Borough Council,Financial Services,Transport Related Expense,Diesel Oil,3202,FUELMATE LTD,A0090265, 02/06/2020,AAS0305972,42.79,N,,N,N/A
Pendle Borough Council,Financial Services,Transport Related Expense,Diesel Oil,3202,FUELMATE LTD,A0090265, 16/06/2020,AAS0305991,44.19,N,,N,N/A
Pendle Borough Council,Financial Services,Transport Related Expense,Diesel Oil,3202,FUELMATE LTD,A0090265, 23/06/2020,AAS0306195,74.72,N,,N,N/A
Pendle Borough Council,Financial Services,Transport Related Expense,Diesel Oil,3202,FUELMATE LTD,A0090265, 23/06/2020,AAS0306195,37.88,N,,N,N/A
Pendle Borough Council,Financial Services,Transport Related Expense,Diesel Oil,3202,FUELMATE LTD,A0090265, 02/06/2020,AAS0305972,47.66,N,,N,N/A
Pendle Borough Council,Financial Services,Transport Related Expense,Diesel Oil,3202,FUELMATE LTD,A0090265, 30/06/2020,AAS0306196,50.34,N,,N,N/A
Pendle Borough Council,Financial Services,Transport Related Expense,Diesel Oil,3202,FUELMATE LTD,A0090265, 09/06/2020,AAS0305973,50.44,N,,N,N/A
Pendle Borough Council,Financial Services,Transport Related Expense,Diesel Oil,3202,FUELMATE LTD,A0090265, 16/06/2020,AAS0305991,72.30,N,,N,N/A
Pendle Borough Council,Financial Services,Transport Related Expense,Diesel Oil,3202,FUELMATE LTD,A0090265, 23/06/2020,AAS0306195,35.77,N,,N,N/A
Pendle Borough Council,Financial Services,Transport Related Expense,Diesel Oil,3202,FUELMATE LTD,A0090265, 09/06/2020,AAS0305973,35.64,N,,N,N/A
Pendle Borough Council,Financial Services,Transport Related Expense,Diesel Oil,3202,FUELMATE LTD,A0090265, 30/06/2020,AAS0306196,36.00,N,,N,N/A
Pendle Borough Council,Financial Services,Transport Related Expense,Diesel Oil,3202,FUELMATE LTD,A0090265, 23/06/2020,AAS0306195,32.40,N,,N,N/A
Pendle Borough Council,Financial Services,Transport Related Expense,Diesel Oil,3202,FUELMATE LTD,A0090265, 09/06/2020,AAS0305973,42.06,N,,N,N/A
Pendle Borough Council,Financial Services,Transport Related Expense,Diesel Oil,3202,FUELMATE LTD,A0090265, 16/06/2020,AAS0305991,28.53,N,,N,N/A
Pendle Borough Council,Financial Services,Transport Related Expense,Diesel Oil,3202,FUELMATE LTD,A0090265, 23/06/2020,AAS0306195,30.92,N,,N,N/A
Pendle Borough Council,Financial Services,Transport Related Expense,Diesel Oil,3202,FUELMATE LTD,A0090265, 16/06/2020,AAS0305991,24.01,N,,N,N/A
Pendle Borough Council,Financial Services,Transport Related Expense,Diesel Oil,3202,FUELMATE LTD,A0090265, 30/06/2020,AAS0306196,25.15,N,,N,N/A
Pendle Borough Council,Financial Services,Transport Related Expense,Diesel Oil,3202,FUELMATE LTD,A0090265, 09/06/2020,AAS0305973,26.22,N,,N,N/A
Pendle Borough Council,Financial Services,Transport Related Expense,Diesel Oil,3202,FUELMATE LTD,A0090265, 30/06/2020,AAS0306196,33.67,N,,N,N/A
Pendle Borough Council,Financial Services,Transport Related Expense,Diesel Oil,3202,FUELMATE LTD,A0090265, 16/06/2020,AAS0305991,35.61,N,,N,N/A
Pendle Borough Council,Financial Services,Transport Related Expense,Diesel Oil,3202,FUELMATE LTD,A0090265, 02/06/2020,AAS0305972,23.79,N,,N,N/A
Pendle Borough Council,Financial Services,Transport Related Expense,Diesel Oil,3202,FUELMATE LTD,A0090265, 23/06/2020,AAS0306195,31.83,N,,N,N/A
Pendle Borough Council,Financial Services,Transport Related Expense,Diesel Oil,3202,FUELMATE LTD,A0090265, 23/06/2020,AAS0306195,39.63,N,,N,N/A
Pendle Borough Council,Financial Services,Transport Related Expense,Diesel Oil,3202,FUELMATE LTD,A0090265, 23/06/2020,AAS0306195,63.43,N,,N,N/A
Pendle Borough Council,Financial Services,Transport Related Expense,Diesel Oil,3202,FUELMATE LTD,A0090265, 09/06/2020,AAS0305973,67.25,N,,N,N/A
Pendle Borough Council,Financial Services,Transport Related Expense,Diesel Oil,3202,FUELMATE LTD,A0090265, 30/06/2020,AAS0306196,74.66,N,,N,N/A
Pendle Borough Council,Financial Services,Transport Related Expense,Diesel Oil,3202,FUELMATE LTD,A0090265, 09/06/2020,AAS0305973,45.54,N,,N,N/A
Pendle Borough Council,Financial Services,Transport Related Expense,Diesel Oil,3202,FUELMATE LTD,A0090265, 23/06/2020,AAS0306195,48.84,N,,N,N/A
Pendle Borough Council,Financial Services,Transport Related Expense,Diesel Oil,3202,FUELMATE LTD,A0090265, 09/06/2020,AAS0305973,51.01,N,,N,N/A
Pendle Borough Council,Financial Services,Transport Related Expense,Diesel Oil,3202,FUELMATE LTD,A0090265, 16/06/2020,AAS0305991,41.05,N,,N,N/A
Pendle Borough Council,Financial Services,Transport Related Expense,Diesel Oil,3202,FUELMATE LTD,A0090265, 02/06/2020,AAS0305972,41.07,N,,N,N/A
Pendle Borough Council,Financial Services,Transport Related Expense,Diesel Oil,3202,FUELMATE LTD,A0090265, 30/06/2020,AAS0306196,44.29,N,,N,N/A
Pendle Borough Council,Financial Services,Transport Related Expense,Diesel Oil,3202,FUELMATE LTD,A0090265, 16/06/2020,AAS0305991,41.48,N,,N,N/A
Pendle Borough Council,Financial Services,Transport Related Expense,Diesel Oil,3202,FUELMATE LTD,A0090265, 30/06/2020,AAS0306196,48.29,N,,N,N/A
Pendle Borough Council,Financial Services,Transport Related Expense,Diesel Oil,3202,FUELMATE LTD,A0090265, 16/06/2020,AAS0305991,36.16,N,,N,N/A
Pendle Borough Council,Financial Services,Transport Related Expense,Diesel Oil,3202,FUELMATE LTD,A0090265, 30/06/2020,AAS0306196,46.61,N,,N,N/A
Pendle Borough Council,Financial Services,Transport Related Expense,Diesel Oil,3202,FUELMATE LTD,A0090265, 16/06/2020,AAS0305991,46.85,N,,N,N/A
Pendle Borough Council,Financial Services,Transport Related Expense,Diesel Oil,3202,FUELMATE LTD,A0090265, 09/06/2020,AAS0305973,47.55,N,,N,N/A
Pendle Borough Council,Financial Services,Transport Related Expense,Diesel Oil,3202,FUELMATE LTD,A0090265, 23/06/2020,AAS0306195,47.76,N,,N,N/A
Pendle Borough Council,Financial Services,Transport Related Expense,Diesel Oil,3202,FUELMATE LTD,A0090265, 02/06/2020,AAS0305972,48.50,N,,N,N/A
Pendle Borough Council,Financial Services,Transport Related Expense,Diesel Oil,3202,FUELMATE LTD,A0090265, 23/06/2020,AAS0306195,48.12,N,,N,N/A
Pendle Borough Council,Financial Services,Transport Related Expense,Diesel Oil,3202,FUELMATE LTD,A0090265, 09/06/2020,AAS0305973,65.05,N,,N,N/A
Pendle Borough Council,Financial Services,Transport Related Expense,Diesel Oil,3202,FUELMATE LTD,A0090265, 30/06/2020,AAS0306196,69.70,N,,N,N/A
Pendle Borough Council,Financial Services,Transport Related Expense,Diesel Oil,3202,FUELMATE LTD,A0090265, 30/06/2020,AAS0306196,30.42,N,,N,N/A
Pendle Borough Council,Financial Services,Supplies and Services,Grant Funding,4737,REDACTED - PERSONAL DATA,A0090312, 04/06/2020,AAS0305215,650.00,N,,N,N/A
Pendle Borough Council,Housing Regeneration Services,Capital Costs,Capital : Payments,CD14,BARNOLDSWICK TOWN COUNCIL,A0090352, 25/06/2020,HMR0305693,"18,624.00",N,,N,N/A
Pendle Borough Council,Operational Services,Premises Related Expense,Water & Sewerage,2501,AQUAM WATER SERVICES LIMITED,A0090390, 11/06/2020,OPS0305419,1.39,N,,N,N/A
Pendle Borough Council,Planning & Building Control,Capital Costs,Capital : Payments,CD14,GAMES@9,A0090430, 11/06/2020,PBC0305335,"2,300.00",N,,N,N/A
Pendle Borough Council,Parks & Recreation Services,Transport Related Expense,Tprt : Repairs : General,3105,M J SUPPLIES,A0090466, 04/06/2020,PCO0305290,91.14,N,,N,N/A
Pendle Borough Council,Planning & Building Control,Supplies and Services,Consultants Fees,4401,REDACTED - PERSONAL DATA,A0090517, 18/06/2020,PBC0305531,750.00,N,,N,N/A
Pendle Borough Council,Financial Services,Supplies and Services,Newspapers & Periodicals,4305,LANCASHIRE BUSINESS VIEW,A0090521, 01/06/2020,AAS0305701,2.50,N,,N,N/A
Pendle Borough Council,Planning & Building Control,Capital Costs,Capital : Payments,CD14,IDOX SOFTWARE LIMITED,A0090564, 04/06/2020,PBC0305310,950.00,N,,N,N/A
Pendle Borough Council,Parks & Recreation Services,Indirect Employee Expenses,Training,1211,THE TRAINING SERVICE LIMITED,A0090690, 04/06/2020,PCO0305289,40.00,N,,N,N/A
Pendle Borough Council,Parks & Recreation Services,Transport Related Expense,Tprt : Repairs : General,3105,SUPER AUTO SAVER,A0090951, 18/06/2020,PCO0305567,22.00,N,,N,N/A
Pendle Borough Council,Parks & Recreation Services,Transport Related Expense,Tprt : Repairs : General,3105,SUPER AUTO SAVER,A0090951, 18/06/2020,PCO0305564,32.69,N,,N,N/A
Pendle Borough Council,Housing Regeneration Services,Supplies and Services,Miscellaneous : Other,4707,CALICO HOMES,A0091059, 25/06/2020,HMR0305635,"1,006.20",N,1151945,N,N/A
Pendle Borough Council,Operational Services,Supplies and Services,Printing & Stationery,4301,RESTORE DATASHRED,A0091201, 18/06/2020,OPS0305595,147.27,N,,N,N/A
Pendle Borough Council,Operational Services,Transport Related Expense,Tprt : Repairs : General,3105,QUARTIX LIMITED,A0091353, 04/06/2020,OPS0305297,41.70,N,,N,N/A
Pendle Borough Council,Operational Services,Transport Related Expense,Tprt : Repairs : General,3105,QUARTIX LIMITED,A0091353, 04/06/2020,OPS0305297,41.70,N,,N,N/A
Pendle Borough Council,Operational Services,Transport Related Expense,Tprt : Repairs : General,3105,QUARTIX LIMITED,A0091353, 04/06/2020,OPS0305297,41.70,N,,N,N/A
Pendle Borough Council,Operational Services,Transport Related Expense,Tprt : Repairs : General,3105,QUARTIX LIMITED,A0091353, 04/06/2020,OPS0305297,41.70,N,,N,N/A
Pendle Borough Council,Operational Services,Transport Related Expense,Tprt : Repairs : General,3105,QUARTIX LIMITED,A0091353, 04/06/2020,OPS0305297,41.70,N,,N,N/A
Pendle Borough Council,Operational Services,Transport Related Expense,Tprt : Repairs : General,3105,QUARTIX LIMITED,A0091353, 04/06/2020,OPS0305297,41.70,N,,N,N/A
Pendle Borough Council,Operational Services,Transport Related Expense,Tprt : Repairs : General,3105,QUARTIX LIMITED,A0091353, 04/06/2020,OPS0305297,41.70,N,,N,N/A
Pendle Borough Council,Operational Services,Transport Related Expense,Tprt : Repairs : General,3105,QUARTIX LIMITED,A0091353, 04/06/2020,OPS0305297,41.70,N,,N,N/A
Pendle Borough Council,Operational Services,Transport Related Expense,Tprt : Repairs : General,3105,QUARTIX LIMITED,A0091353, 04/06/2020,OPS0305297,41.70,N,,N,N/A
Pendle Borough Council,Operational Services,Transport Related Expense,Tprt : Repairs : General,3105,QUARTIX LIMITED,A0091353, 04/06/2020,OPS0305297,41.70,N,,N,N/A
Pendle Borough Council,Operational Services,Transport Related Expense,Tprt : Repairs : General,3105,QUARTIX LIMITED,A0091353, 04/06/2020,OPS0305297,41.70,N,,N,N/A
Pendle Borough Council,Operational Services,Transport Related Expense,Tprt : Repairs : General,3105,QUARTIX LIMITED,A0091353, 04/06/2020,OPS0305297,41.70,N,,N,N/A
Pendle Borough Council,Operational Services,Transport Related Expense,Tprt : Repairs : General,3105,QUARTIX LIMITED,A0091353, 04/06/2020,OPS0305297,41.70,N,,N,N/A
Pendle Borough Council,Operational Services,Transport Related Expense,Tprt : Repairs : General,3105,QUARTIX LIMITED,A0091353, 04/06/2020,OPS0305297,41.70,N,,N,N/A
Pendle Borough Council,Operational Services,Transport Related Expense,Tprt : Repairs : General,3105,QUARTIX LIMITED,A0091353, 04/06/2020,OPS0305297,41.70,N,,N,N/A
Pendle Borough Council,Operational Services,Transport Related Expense,Tprt : Repairs : General,3105,QUARTIX LIMITED,A0091353, 04/06/2020,OPS0305297,41.70,N,,N,N/A
Pendle Borough Council,Operational Services,Supplies and Services,Miscellaneous : Other,4707,EURO LABELS PRINTERS LIMITED,A0091396, 25/06/2020,OPS0305669,"3,646.16",N,,N,N/A
Pendle Borough Council,Housing Regeneration Services,Supplies and Services,Other Expenses,4705,RENT UK PROPERTY LIMITED,A0091433, 04/06/2020,HMR0305182,368.00,N,,N,N/A
Pendle Borough Council,Housing Regeneration Services,Supplies and Services,Other Expenses,4705,RENT UK PROPERTY LIMITED,A0091433, 18/06/2020,HMR0305493,370.00,N,,N,N/A
Pendle Borough Council,Operational Services,Supplies and Services,Printing & Stationery,4301,STORM TECHNOLOGIES LIMITED,A0091493, 11/06/2020,OPS0305415,44.99,N,,N,N/A
Pendle Borough Council,Planning & Building Control,,Fees Income : Non-VATable,9302,PORTALPLANQUEST LIMITED,A0091554, 25/06/2020,PBC0305634,34.00,N,,N,N/A
Pendle Borough Council,Planning & Building Control,,Fees Income : Non-VATable,9302,PORTALPLANQUEST LIMITED,A0091554, 18/06/2020,PBC0305549,206.00,N,,N,N/A
Pendle Borough Council,Planning & Building Control,,Fees Income : Non-VATable,9302,PORTALPLANQUEST LIMITED,A0091554, 11/06/2020,PBC0305338,462.00,N,,N,N/A
Pendle Borough Council,Parks & Recreation Services,Agency Staff,Emp : Basic Wages,1001,NW RECRUITMENT SERVICES LIMITED,A0091588, 11/06/2020,PCO0305431,"1,392.00",N,,N,N/A
Pendle Borough Council,Parks & Recreation Services,Agency Staff,Emp : Basic Wages,1001,NW RECRUITMENT SERVICES LIMITED,A0091588, 11/06/2020,PCO0305429,"1,554.00",N,,N,N/A
Pendle Borough Council,Parks & Recreation Services,Agency Staff,Emp : Basic Wages,1001,NW RECRUITMENT SERVICES LIMITED,A0091588, 25/06/2020,PCO0305652,"1,852.75",N,,N,N/A
Pendle Borough Council,Parks & Recreation Services,Agency Staff,Emp : Basic Wages,1001,NW RECRUITMENT SERVICES LIMITED,A0091588, 18/06/2020,PCO0305568,"1,855.29",N,,N,N/A
Pendle Borough Council,Operational Services,Agency Staff,Emp : Agency Wages,1004,NW RECRUITMENT SERVICES LIMITED,A0091588, 25/06/2020,OPS0305673,"2,631.76",N,,N,N/A
Pendle Borough Council,Operational Services,Agency Staff,Emp : Agency Wages,1004,NW RECRUITMENT SERVICES LIMITED,A0091588, 25/06/2020,OPS0305672,"4,013.32",N,,N,N/A
Pendle Borough Council,Operational Services,Agency Staff,Emp : Agency Wages,1004,NW RECRUITMENT SERVICES LIMITED,A0091588, 18/06/2020,OPS0305582,"4,187.57",N,,N,N/A
Pendle Borough Council,Operational Services,Agency Staff,Emp : Agency Wages,1004,NW RECRUITMENT SERVICES LIMITED,A0091588, 25/06/2020,OPS0305672,"2,480.84",N,,N,N/A
Pendle Borough Council,Operational Services,Agency Staff,Emp : Agency Wages,1004,NW RECRUITMENT SERVICES LIMITED,A0091588, 18/06/2020,OPS0305582,"2,521.96",N,,N,N/A
Pendle Borough Council,Operational Services,Agency Staff,Emp : Agency Wages,1004,NW RECRUITMENT SERVICES LIMITED,A0091588, 25/06/2020,OPS0305673,"2,546.38",N,,N,N/A
Pendle Borough Council,Operational Services,Agency Staff,Emp : Agency Wages,1004,NW RECRUITMENT SERVICES LIMITED,A0091588, 25/06/2020,OPS0305673,866.18,N,,N,N/A
Pendle Borough Council,Operational Services,Agency Staff,Emp : Agency Wages,1004,NW RECRUITMENT SERVICES LIMITED,A0091588, 18/06/2020,OPS0305582,"1,522.82",N,,N,N/A
Pendle Borough Council,Operational Services,Agency Staff,Emp : Agency Wages,1004,NW RECRUITMENT SERVICES LIMITED,A0091588, 25/06/2020,OPS0305672,"1,758.82",N,,N,N/A
Pendle Borough Council,Operational Services,Transport Related Expense,Tprt : Repairs : General,3105,GO PLANT FLEET SERVICES LIMITED,A0091600, 18/06/2020,OPS0305499,107.23,N,,N,N/A
Pendle Borough Council,Operational Services,Transport Related Expense,Tprt : Repairs : General,3105,GO PLANT FLEET SERVICES LIMITED,A0091600, 18/06/2020,OPS0305512,177.43,N,,N,N/A
Pendle Borough Council,Operational Services,Transport Related Expense,Tprt : Repairs : General,3105,GO PLANT FLEET SERVICES LIMITED,A0091600, 18/06/2020,OPS0305510,168.95,N,,N,N/A
Pendle Borough Council,Operational Services,Transport Related Expense,Tprt : Repairs : General,3105,GO PLANT FLEET SERVICES LIMITED,A0091600, 18/06/2020,OPS0305507,79.60,N,,N,N/A
Pendle Borough Council,Operational Services,Transport Related Expense,Tprt : Repairs : General,3105,GO PLANT FLEET SERVICES LIMITED,A0091600, 18/06/2020,OPS0305519,79.60,N,,N,N/A
Pendle Borough Council,Operational Services,Transport Related Expense,Tprt : Repairs : General,3105,GO PLANT FLEET SERVICES LIMITED,A0091600, 18/06/2020,OPS0305511,79.60,N,,N,N/A
Pendle Borough Council,Operational Services,Transport Related Expense,Tprt : Repairs : General,3105,GO PLANT FLEET SERVICES LIMITED,A0091600, 18/06/2020,OPS0305503,37.38,N,,N,N/A
Pendle Borough Council,Operational Services,Transport Related Expense,Tprt : Repairs : General,3105,GO PLANT FLEET SERVICES LIMITED,A0091600, 18/06/2020,OPS0305513,165.85,N,,N,N/A
Pendle Borough Council,Operational Services,Transport Related Expense,Tprt : Repairs : General,3105,GO PLANT FLEET SERVICES LIMITED,A0091600, 18/06/2020,OPS0305523,39.80,N,,N,N/A
Pendle Borough Council,Operational Services,Transport Related Expense,Tyres,3204,GO PLANT FLEET SERVICES LIMITED,A0091600, 18/06/2020,OPS0305500,96.49,N,,N,N/A
Pendle Borough Council,Operational Services,Transport Related Expense,Tyres,3204,GO PLANT FLEET SERVICES LIMITED,A0091600, 18/06/2020,OPS0305515,65.61,N,,N,N/A
Pendle Borough Council,Operational Services,Transport Related Expense,Tyres,3204,GO PLANT FLEET SERVICES LIMITED,A0091600, 18/06/2020,OPS0305504,271.40,N,,N,N/A
Pendle Borough Council,Operational Services,Transport Related Expense,Tyres,3204,GO PLANT FLEET SERVICES LIMITED,A0091600, 18/06/2020,OPS0305516,271.40,N,,N,N/A
Pendle Borough Council,Operational Services,Transport Related Expense,Tyres,3204,GO PLANT FLEET SERVICES LIMITED,A0091600, 18/06/2020,OPS0305518,120.46,N,,N,N/A
Pendle Borough Council,Operational Services,Transport Related Expense,Tyres,3204,GO PLANT FLEET SERVICES LIMITED,A0091600, 18/06/2020,OPS0305509,19.32,N,,N,N/A
Pendle Borough Council,Operational Services,Transport Related Expense,Tyres,3204,GO PLANT FLEET SERVICES LIMITED,A0091600, 18/06/2020,OPS0305502,100.28,N,,N,N/A
Pendle Borough Council,Operational Services,Transport Related Expense,Tyres,3204,GO PLANT FLEET SERVICES LIMITED,A0091600, 18/06/2020,OPS0305520,105.17,N,,N,N/A
Pendle Borough Council,Operational Services,Transport Related Expense,Tyres,3204,GO PLANT FLEET SERVICES LIMITED,A0091600, 18/06/2020,OPS0305501,96.49,N,,N,N/A
Pendle Borough Council,Operational Services,Transport Related Expense,Tyres,3204,GO PLANT FLEET SERVICES LIMITED,A0091600, 18/06/2020,OPS0305505,116.55,N,,N,N/A
Pendle Borough Council,Operational Services,Transport Related Expense,Tyres,3204,GO PLANT FLEET SERVICES LIMITED,A0091600, 18/06/2020,OPS0305521,116.55,N,,N,N/A
Pendle Borough Council,Operational Services,Transport Related Expense,Tyres,3204,GO PLANT FLEET SERVICES LIMITED,A0091600, 18/06/2020,OPS0305506,24.21,N,,N,N/A
Pendle Borough Council,Operational Services,Transport Related Expense,Tyres,3204,GO PLANT FLEET SERVICES LIMITED,A0091600, 18/06/2020,OPS0305522,116.55,N,,N,N/A
Pendle Borough Council,Operational Services,Transport Related Expense,Tyres,3204,GO PLANT FLEET SERVICES LIMITED,A0091600, 18/06/2020,OPS0305508,24.21,N,,N,N/A
Pendle Borough Council,Operational Services,Transport Related Expense,Tyres,3204,GO PLANT FLEET SERVICES LIMITED,A0091600, 18/06/2020,OPS0305514,65.61,N,,N,N/A
Pendle Borough Council,Operational Services,Transport Related Expense,Tyres,3204,GO PLANT FLEET SERVICES LIMITED,A0091600, 18/06/2020,OPS0305517,116.55,N,,N,N/A
Pendle Borough Council,Operational Services,Transport Related Expense,Tprt : Annual Hire Charge,3601,GO PLANT FLEET SERVICES LIMITED,A0091600, 04/06/2020,OPS0305259,"3,540.62",N,,N,N/A
Pendle Borough Council,Operational Services,Transport Related Expense,Tprt : Annual Hire Charge,3601,GO PLANT FLEET SERVICES LIMITED,A0091600, 04/06/2020,OPS0305256,"3,540.62",N,,N,N/A
Pendle Borough Council,Operational Services,Transport Related Expense,Tprt : Annual Hire Charge,3601,GO PLANT FLEET SERVICES LIMITED,A0091600, 04/06/2020,OPS0305252,"3,540.62",N,,N,N/A
Pendle Borough Council,Operational Services,Transport Related Expense,Tprt : Annual Hire Charge,3601,GO PLANT FLEET SERVICES LIMITED,A0091600, 04/06/2020,OPS0305253,"3,540.62",N,,N,N/A
Pendle Borough Council,Operational Services,Transport Related Expense,Tprt : Annual Hire Charge,3601,GO PLANT FLEET SERVICES LIMITED,A0091600, 04/06/2020,OPS0305251,"3,540.62",N,,N,N/A
Pendle Borough Council,Operational Services,Transport Related Expense,Tprt : Annual Hire Charge,3601,GO PLANT FLEET SERVICES LIMITED,A0091600, 04/06/2020,OPS0305275,"3,344.64",N,,N,N/A
Pendle Borough Council,Operational Services,Transport Related Expense,Tprt : Annual Hire Charge,3601,GO PLANT FLEET SERVICES LIMITED,A0091600, 18/06/2020,OPS0305498,400.00,N,,N,N/A
Pendle Borough Council,Operational Services,Transport Related Expense,Tprt : Annual Hire Charge,3601,GO PLANT FLEET SERVICES LIMITED,A0091600, 04/06/2020,OPS0305260,"3,540.62",N,,N,N/A
Pendle Borough Council,Operational Services,Transport Related Expense,Tprt : Annual Hire Charge,3601,GO PLANT FLEET SERVICES LIMITED,A0091600, 04/06/2020,OPS0305255,"3,540.62",N,,N,N/A
Pendle Borough Council,Operational Services,Transport Related Expense,Tprt : Annual Hire Charge,3601,GO PLANT FLEET SERVICES LIMITED,A0091600, 04/06/2020,OPS0305247,"3,549.74",N,,N,N/A
Pendle Borough Council,Operational Services,Transport Related Expense,Tprt : Annual Hire Charge,3601,GO PLANT FLEET SERVICES LIMITED,A0091600, 04/06/2020,OPS0305249,"3,549.74",N,,N,N/A
Pendle Borough Council,Operational Services,Transport Related Expense,Tprt : Annual Hire Charge,3601,GO PLANT FLEET SERVICES LIMITED,A0091600, 04/06/2020,OPS0305254,"3,549.74",N,,N,N/A
Pendle Borough Council,Operational Services,Transport Related Expense,Tprt : Annual Hire Charge,3601,GO PLANT FLEET SERVICES LIMITED,A0091600, 04/06/2020,OPS0305248,"3,497.07",N,,N,N/A
Pendle Borough Council,Operational Services,Transport Related Expense,Tprt : Annual Hire Charge,3601,GO PLANT FLEET SERVICES LIMITED,A0091600, 04/06/2020,OPS0305276,"3,393.00",N,,N,N/A
Pendle Borough Council,Operational Services,Transport Related Expense,Tprt : Annual Hire Charge,3601,GO PLANT FLEET SERVICES LIMITED,A0091600, 04/06/2020,OPS0305277,"2,654.17",N,,N,N/A
Pendle Borough Council,Operational Services,Transport Related Expense,Tprt : Annual Hire Charge,3601,GO PLANT FLEET SERVICES LIMITED,A0091600, 04/06/2020,OPS0305258,"1,981.53",N,,N,N/A
Pendle Borough Council,Operational Services,Transport Related Expense,Tprt : Annual Hire Charge,3601,GO PLANT FLEET SERVICES LIMITED,A0091600, 04/06/2020,OPS0305245,"1,981.53",N,,N,N/A
Pendle Borough Council,Operational Services,Transport Related Expense,Tprt : Annual Hire Charge,3601,GO PLANT FLEET SERVICES LIMITED,A0091600, 04/06/2020,OPS0305250,"1,981.53",N,,N,N/A
Pendle Borough Council,Operational Services,Transport Related Expense,Tprt : Annual Hire Charge,3601,GO PLANT FLEET SERVICES LIMITED,A0091600, 04/06/2020,OPS0305246,"1,981.53",N,,N,N/A
Pendle Borough Council,Operational Services,Transport Related Expense,Tprt : Annual Hire Charge,3601,GO PLANT FLEET SERVICES LIMITED,A0091600, 04/06/2020,OPS0305257,"1,981.53",N,,N,N/A
Pendle Borough Council,Operational Services,Transport Related Expense,Tprt : Annual Hire Charge,3601,GO PLANT FLEET SERVICES LIMITED,A0091600, 04/06/2020,OPS0305262,509.54,N,,N,N/A
Pendle Borough Council,Operational Services,Transport Related Expense,Tprt : Annual Hire Charge,3601,GO PLANT FLEET SERVICES LIMITED,A0091600, 04/06/2020,OPS0305261,509.54,N,,N,N/A
Pendle Borough Council,Operational Services,Transport Related Expense,Tprt : Annual Hire Charge,3601,GO PLANT FLEET SERVICES LIMITED,A0091600, 04/06/2020,OPS0305272,496.47,N,,N,N/A
Pendle Borough Council,Operational Services,Transport Related Expense,Tprt : Annual Hire Charge,3601,GO PLANT FLEET SERVICES LIMITED,A0091600, 04/06/2020,OPS0305279,598.81,N,,N,N/A
Pendle Borough Council,Operational Services,Transport Related Expense,Tprt : Annual Hire Charge,3601,GO PLANT FLEET SERVICES LIMITED,A0091600, 04/06/2020,OPS0305280,598.81,N,,N,N/A
Pendle Borough Council,Operational Services,Transport Related Expense,Tprt : Annual Hire Charge,3601,GO PLANT FLEET SERVICES LIMITED,A0091600, 04/06/2020,OPS0305282,598.81,N,,N,N/A
Pendle Borough Council,Operational Services,Transport Related Expense,Tprt : Annual Hire Charge,3601,GO PLANT FLEET SERVICES LIMITED,A0091600, 04/06/2020,OPS0305281,598.81,N,,N,N/A
Pendle Borough Council,Operational Services,Transport Related Expense,Tprt : Annual Hire Charge,3601,GO PLANT FLEET SERVICES LIMITED,A0091600, 04/06/2020,OPS0305269,239.53,N,,N,N/A
Pendle Borough Council,Operational Services,Transport Related Expense,Tprt : Annual Hire Charge,3601,GO PLANT FLEET SERVICES LIMITED,A0091600, 04/06/2020,OPS0305265,239.53,N,,N,N/A
Pendle Borough Council,Operational Services,Transport Related Expense,Tprt : Annual Hire Charge,3601,GO PLANT FLEET SERVICES LIMITED,A0091600, 04/06/2020,OPS0305263,239.53,N,,N,N/A
Pendle Borough Council,Operational Services,Transport Related Expense,Tprt : Annual Hire Charge,3601,GO PLANT FLEET SERVICES LIMITED,A0091600, 04/06/2020,OPS0305266,239.53,N,,N,N/A
Pendle Borough Council,Operational Services,Transport Related Expense,Tprt : Annual Hire Charge,3601,GO PLANT FLEET SERVICES LIMITED,A0091600, 04/06/2020,OPS0305264,239.53,N,,N,N/A
Pendle Borough Council,Operational Services,Transport Related Expense,Tprt : Annual Hire Charge,3601,GO PLANT FLEET SERVICES LIMITED,A0091600, 04/06/2020,OPS0305267,239.53,N,,N,N/A
Pendle Borough Council,Operational Services,Transport Related Expense,Tprt : Annual Hire Charge,3601,GO PLANT FLEET SERVICES LIMITED,A0091600, 04/06/2020,OPS0305268,239.53,N,,N,N/A
Pendle Borough Council,Operational Services,Transport Related Expense,Tprt : Annual Hire Charge,3601,GO PLANT FLEET SERVICES LIMITED,A0091600, 04/06/2020,OPS0305270,339.69,N,,N,N/A
Pendle Borough Council,Operational Services,Transport Related Expense,Tprt : Annual Hire Charge,3601,GO PLANT FLEET SERVICES LIMITED,A0091600, 04/06/2020,OPS0305278,592.28,N,,N,N/A
Pendle Borough Council,Operational Services,Transport Related Expense,Tprt : Annual Hire Charge,3601,GO PLANT FLEET SERVICES LIMITED,A0091600, 04/06/2020,OPS0305286,592.28,N,,N,N/A
Pendle Borough Council,Operational Services,Transport Related Expense,Tprt : Annual Hire Charge,3601,GO PLANT FLEET SERVICES LIMITED,A0091600, 04/06/2020,OPS0305285,592.28,N,,N,N/A
Pendle Borough Council,Operational Services,Transport Related Expense,Tprt : Annual Hire Charge,3601,GO PLANT FLEET SERVICES LIMITED,A0091600, 04/06/2020,OPS0305284,592.28,N,,N,N/A
Pendle Borough Council,Operational Services,Transport Related Expense,Tprt : Annual Hire Charge,3601,GO PLANT FLEET SERVICES LIMITED,A0091600, 04/06/2020,OPS0305274,592.28,N,,N,N/A
Pendle Borough Council,Operational Services,Transport Related Expense,Tprt : Annual Hire Charge,3601,GO PLANT FLEET SERVICES LIMITED,A0091600, 04/06/2020,OPS0305283,535.67,N,,N,N/A
Pendle Borough Council,Operational Services,Transport Related Expense,Tprt : Annual Hire Charge,3601,GO PLANT FLEET SERVICES LIMITED,A0091600, 04/06/2020,OPS0305273,496.47,N,,N,N/A
Pendle Borough Council,Operational Services,Transport Related Expense,Tprt : Annual Hire Charge,3601,GO PLANT FLEET SERVICES LIMITED,A0091600, 04/06/2020,OPS0305271,239.53,N,,N,N/A
Pendle Borough Council,Engineering & Special Projects,Premises Related Expense,Bldgs : R & M : Day To Day,2001,A&G LANDSCAPES & GROUNDWORKS LIMITED,A0091675, 18/06/2020,HED0305558,90.00,N,,N,N/A
Pendle Borough Council,Engineering & Special Projects,Premises Related Expense,Bldgs : R & M : Day To Day,2001,A&G LANDSCAPES & GROUNDWORKS LIMITED,A0091675, 18/06/2020,HED0305558,"1,059.75",N,,N,N/A
Pendle Borough Council,Engineering & Special Projects,Premises Related Expense,Grounds : R & M : Day to Day : Routine,2101,A&G LANDSCAPES & GROUNDWORKS LIMITED,A0091675, 25/06/2020,HED0305697,177.00,N,,N,N/A
Pendle Borough Council,Engineering & Special Projects,Premises Related Expense,Grounds : R & M : Day to Day : Routine,2101,A&G LANDSCAPES & GROUNDWORKS LIMITED,A0091675, 04/06/2020,HED0305177,307.50,N,,N,N/A
Pendle Borough Council,Engineering & Special Projects,Premises Related Expense,Grounds : R & M : Day to Day : Routine,2101,A&G LANDSCAPES & GROUNDWORKS LIMITED,A0091675, 04/06/2020,HED0305177,540.00,N,,N,N/A
Pendle Borough Council,Engineering & Special Projects,Capital Costs,Capital : Payments,CD14,A&G LANDSCAPES & GROUNDWORKS LIMITED,A0091675, 04/06/2020,HED0305238,"3,240.00",N,,N,N/A
Pendle Borough Council,Engineering & Special Projects,Capital Costs,Capital : Payments,CD14,A&G LANDSCAPES & GROUNDWORKS LIMITED,A0091675, 04/06/2020,HED0305238,"11,502.50",N,,N,N/A
Pendle Borough Council,Engineering & Special Projects,,Paid in the Year,PD03,A&G LANDSCAPES & GROUNDWORKS LIMITED,A0091675, 04/06/2020,HED0305237,499.81,N,,N,N/A
Pendle Borough Council,Financial Services,Transport Related Expense,Tprt : Annual Hire Charge,3601,ISUZU CONTRACT HIRE,A0091722, 30/06/2020,AAS0305942,246.68,N,,N,N/A
Pendle Borough Council,Financial Services,Transport Related Expense,Tprt : Annual Hire Charge,3601,ISUZU CONTRACT HIRE,A0091722, 30/06/2020,AAS0305942,283.07,N,,N,N/A
Pendle Borough Council,Financial Services,Capital Costs,Capital : Payments,CD14,PEARL TOGETHER LIMITED,A0091725, 25/06/2020,AAS0305687,"7,500.00",N,,N,N/A
Pendle Borough Council,Operational Services,Agency Staff,Emp : Agency Wages,1004,THE BEST CONNECTION GROUP LIMITED,A0091729, 18/06/2020,OPS0305581,130.43,N,,N,N/A
Pendle Borough Council,Operational Services,Agency Staff,Emp : Agency Wages,1004,THE BEST CONNECTION GROUP LIMITED,A0091729, 18/06/2020,OPS0305581,173.85,N,,N,N/A
Pendle Borough Council,Operational Services,Agency Staff,Emp : Agency Wages,1004,THE BEST CONNECTION GROUP LIMITED,A0091729, 25/06/2020,OPS0305671,301.34,N,,N,N/A
Pendle Borough Council,Operational Services,Agency Staff,Emp : Agency Wages,1004,THE BEST CONNECTION GROUP LIMITED,A0091729, 11/06/2020,OPS0305421,341.91,N,,N,N/A
Pendle Borough Council,Operational Services,Agency Staff,Emp : Agency Wages,1004,THE BEST CONNECTION GROUP LIMITED,A0091729, 11/06/2020,OPS0305422,459.54,N,,N,N/A
Pendle Borough Council,Operational Services,Agency Staff,Emp : Agency Wages,1004,THE BEST CONNECTION GROUP LIMITED,A0091729, 18/06/2020,OPS0305579,459.54,N,,N,N/A
Pendle Borough Council,Operational Services,Agency Staff,Emp : Agency Wages,1004,THE BEST CONNECTION GROUP LIMITED,A0091729, 18/06/2020,OPS0305571,552.69,N,,N,N/A
Pendle Borough Council,Operational Services,Agency Staff,Emp : Agency Wages,1004,THE BEST CONNECTION GROUP LIMITED,A0091729, 18/06/2020,OPS0305581,142.35,N,,N,N/A
Pendle Borough Council,Operational Services,Agency Staff,Emp : Agency Wages,1004,THE BEST CONNECTION GROUP LIMITED,A0091729, 18/06/2020,OPS0305581,309.93,N,,N,N/A
Pendle Borough Council,Operational Services,Agency Staff,Emp : Agency Wages,1004,THE BEST CONNECTION GROUP LIMITED,A0091729, 25/06/2020,OPS0305671,373.18,N,,N,N/A
Pendle Borough Council,Operational Services,Agency Staff,Emp : Agency Wages,1004,THE BEST CONNECTION GROUP LIMITED,A0091729, 11/06/2020,OPS0305421,468.05,N,,N,N/A
Pendle Borough Council,Operational Services,Agency Staff,Emp : Agency Wages,1004,THE BEST CONNECTION GROUP LIMITED,A0091729, 25/06/2020,OPS0305671,127.49,N,,N,N/A
Pendle Borough Council,Financial Services,Capital Financing Costs,Lease costs:Computer (Orchard),8204,9 GROUP LTD,A0091771, 22/06/2020,AAS0305724,609.57,N,,N,N/A
Pendle Borough Council,Financial Services,Supplies and Services,"Monitoring, Console etc",4510,NEW STAR NETWORKS,A0091779, 24/06/2020,AAS0305719,41.49,N,,N,N/A
Pendle Borough Council,Engineering & Special Projects,Premises Related Expense,Grounds : R & M : Day to Day : Routine,2101,EDF ENERGY CUSTOMERS LIMITED,A0091859, 11/06/2020,HED0305392,227.43,N,,N,N/A
Pendle Borough Council,Engineering & Special Projects,Premises Related Expense,Grounds : R & M : Day to Day : Routine,2101,EDF ENERGY CUSTOMERS LIMITED,A0091859, 11/06/2020,HED0305393,276.59,N,,N,N/A
Pendle Borough Council,Operational Services,Supplies and Services,Sub-Contractors,4007,DISTRICT ENFORCEMENT LIMITED,A0091860, 25/06/2020,OPS0305674,135.00,N,,N,N/A
Pendle Borough Council,Engineering & Special Projects,Supplies and Services,Consultants Fees,4401,CUSHMAN & WAKEFIELD DEBENHAM TIE LEUNG LTD,A0091938, 11/06/2020,HED0305396,"2,000.00",N,,N,N/A
Pendle Borough Council,Housing Regeneration Services,Transfer Payments,Accommodation ,6103,MR WS BHATTI MR ZA BUTT PENDLE LODGE,A0092429, 25/06/2020,HMR0305642,675.00,N,,N,N/A
Pendle Borough Council,Housing Regeneration Services,Transfer Payments,Accommodation ,6103,MR WS BHATTI MR ZA BUTT PENDLE LODGE,A0092429, 11/06/2020,HMR0305360,"2,700.00",N,,N,N/A
Pendle Borough Council,Housing Regeneration Services,Transfer Payments,Storage & Homelessness prevention,6104,MR WS BHATTI MR ZA BUTT PENDLE LODGE,A0092429, 11/06/2020,HMR0305339,"5,400.00",N,,N,N/A
Pendle Borough Council,Planning & Building Control,Capital Costs,Capital : Payments,CD14,ANMOL FASHIONS NELSON LTD,A0092699, 18/06/2020,PBC0305526,"3,000.00",N,,N,N/A
Pendle Borough Council,Planning & Building Control,Supplies and Services,Grants/Contributions,4739,REDACTED - PERSONAL DATA,A0093436, 18/06/2020,PBC0305525,"1,985.00",N,,N,N/A
Pendle Borough Council,Operational Services,Supplies and Services,EFM Materials,4004,WM MORRISON SUPERMARKETS PLC,A0093767, 18/06/2020,OPS0305577,23.04,N,,N,N/A
Pendle Borough Council,Operational Services,Supplies and Services,EFM Materials,4004,WM MORRISON SUPERMARKETS PLC,A0093767, 18/06/2020,OPS0305576,77.40,N,,N,N/A
Pendle Borough Council,Operational Services,Supplies and Services,EFM Materials,4004,WM MORRISON SUPERMARKETS PLC,A0093767, 18/06/2020,OPS0305576,"1,453.58",N,,N,N/A
Pendle Borough Council,Operational Services,Supplies and Services,EFM Materials,4004,WM MORRISON SUPERMARKETS PLC,A0093767, 18/06/2020,OPS0305575,"2,933.38",N,,N,N/A
Pendle Borough Council,Operational Services,Supplies and Services,EFM Materials,4004,WM MORRISON SUPERMARKETS PLC,A0093767, 18/06/2020,OPS0305577,"4,216.26",N,,N,N/A
Pendle Borough Council,Operational Services,Premises Related Expense,Bldgs : R & M : Day To Day,2001,AMAZON PAYMENTS UK LIMITED,A0093876, 25/06/2020,OPS0305670,15.82,N,,N,N/A
Pendle Borough Council,Operational Services,Supplies and Services,EFM Materials,4004,AMAZON PAYMENTS UK LIMITED,A0093876, 18/06/2020,OPS0305578,18.24,N,,N,N/A
Pendle Borough Council,Operational Services,Supplies and Services,EFM Materials,4004,AMAZON PAYMENTS UK LIMITED,A0093876, 18/06/2020,OPS0305598,41.16,N,,N,N/A
Pendle Borough Council,Operational Services,Supplies and Services,EFM Materials,4004,AMAZON PAYMENTS UK LIMITED,A0093876, 18/06/2020,OPS0305585,49.98,N,,N,N/A
Pendle Borough Council,Operational Services,Supplies and Services,EFM Materials,4004,AMAZON PAYMENTS UK LIMITED,A0093876, 18/06/2020,OPS0305586,62.20,N,,N,N/A
Pendle Borough Council,Operational Services,Supplies and Services,EFM Materials,4004,AMAZON PAYMENTS UK LIMITED,A0093876, 18/06/2020,OPS0305584,78.62,N,,N,N/A
Pendle Borough Council,Operational Services,Supplies and Services,EFM Materials,4004,AMAZON PAYMENTS UK LIMITED,A0093876, 18/06/2020,OPS0305598,99.09,N,,N,N/A
Pendle Borough Council,Operational Services,Supplies and Services,EFM Materials,4004,AMAZON PAYMENTS UK LIMITED,A0093876, 18/06/2020,OPS0305599,133.20,N,,N,N/A
Pendle Borough Council,Operational Services,Supplies and Services,EFM Materials,4004,AMAZON PAYMENTS UK LIMITED,A0093876, 18/06/2020,OPS0305599,216.16,N,,N,N/A
Pendle Borough Council,Operational Services,Supplies and Services,EFM Materials,4004,AMAZON PAYMENTS UK LIMITED,A0093876, 18/06/2020,OPS0305593,914.00,N,,N,N/A
Pendle Borough Council,Operational Services,Supplies and Services,EFM Materials,4004,AMAZON PAYMENTS UK LIMITED,A0093876, 18/06/2020,OPS0305600,"1,828.00",N,,N,N/A
Pendle Borough Council,Financial Services,Supplies and Services,Grant Funding,4737,REDACTED - PERSONAL DATA,A0093910, 16/06/2020,AAS0305140,"10,000.00",N,,N,N/A
Pendle Borough Council,Financial Services,Supplies and Services,Grant Funding,4737,REDACTED - PERSONAL DATA,A0093923, 02/06/2020,AAS0305153,"10,000.00",N,,N,N/A
Pendle Borough Council,Financial Services,,Paid in the Year,PD03,REDACTED - PERSONAL DATA,A0093946, 02/06/2020,AAS0305191,500.00,N,,N,N/A
Pendle Borough Council,Financial Services,,Paid in the Year,PD03,REDACTED - PERSONAL DATA,A0093947, 02/06/2020,AAS0305192,500.00,N,,N,N/A
Pendle Borough Council,Financial Services,Supplies and Services,Grant Funding,4737,REDACTED - PERSONAL DATA,A0093948, 02/06/2020,AAS0305193,"10,000.00",N,,N,N/A
Pendle Borough Council,Financial Services,Supplies and Services,Grant Funding,4737,REDACTED - PERSONAL DATA,A0093949, 02/06/2020,AAS0305194,"10,000.00",N,,N,N/A
Pendle Borough Council,Financial Services,Supplies and Services,Grant Funding,4737,REDACTED - PERSONAL DATA,A0093950, 02/06/2020,AAS0305195,"10,000.00",N,,N,N/A
Pendle Borough Council,Financial Services,Supplies and Services,Grant Funding,4737,REDACTED - PERSONAL DATA,A0093951, 02/06/2020,AAS0305196,"10,000.00",N,,N,N/A
Pendle Borough Council,Financial Services,Supplies and Services,Grant Funding,4737,REDACTED - PERSONAL DATA,A0093952, 02/06/2020,AAS0305197,"10,000.00",N,,N,N/A
Pendle Borough Council,Financial Services,Supplies and Services,Grant Funding,4737,REDACTED - PERSONAL DATA,A0093953, 02/06/2020,AAS0305198,"10,000.00",N,,N,N/A
Pendle Borough Council,Financial Services,Supplies and Services,Grant Funding,4737,REDACTED - PERSONAL DATA,A0093954, 02/06/2020,AAS0305199,"10,000.00",N,,N,N/A
Pendle Borough Council,Financial Services,Supplies and Services,Grant Funding,4737,REDACTED - PERSONAL DATA,A0093955, 02/06/2020,AAS0305200,"10,000.00",N,,N,N/A
Pendle Borough Council,Financial Services,Supplies and Services,Grant Funding,4737,REDACTED - PERSONAL DATA,A0093956, 02/06/2020,AAS0305201,"10,000.00",N,,N,N/A
Pendle Borough Council,Financial Services,Supplies and Services,Grant Funding,4737,REDACTED - PERSONAL DATA,A0093957, 02/06/2020,AAS0305202,"10,000.00",N,,N,N/A
Pendle Borough Council,Financial Services,Supplies and Services,Grant Funding,4737,REDACTED - PERSONAL DATA,A0093958, 02/06/2020,AAS0305203,"10,000.00",N,,N,N/A
Pendle Borough Council,Financial Services,Supplies and Services,Grant Funding,4737,REDACTED - PERSONAL DATA,A0093959, 02/06/2020,AAS0305204,"10,000.00",N,,N,N/A
Pendle Borough Council,Financial Services,Supplies and Services,Grant Funding,4737,REDACTED - PERSONAL DATA,A0093960, 02/06/2020,AAS0305205,"10,000.00",N,,N,N/A
Pendle Borough Council,Financial Services,Supplies and Services,Grant Funding,4737,REDACTED - PERSONAL DATA,A0093961, 02/06/2020,AAS0305206,"10,000.00",N,,N,N/A
Pendle Borough Council,Financial Services,Supplies and Services,Grant Funding,4737,REDACTED - PERSONAL DATA,A0093962, 02/06/2020,AAS0305207,"10,000.00",N,,N,N/A
Pendle Borough Council,Financial Services,Supplies and Services,Grant Funding,4737,REDACTED - PERSONAL DATA,A0093963, 02/06/2020,AAS0305208,"10,000.00",N,,N,N/A
Pendle Borough Council,Financial Services,Supplies and Services,Grant Funding,4737,REDACTED - PERSONAL DATA,A0093964, 02/06/2020,AAS0305209,"10,000.00",N,,N,N/A
Pendle Borough Council,Financial Services,Supplies and Services,Grant Funding,4737,REDACTED - PERSONAL DATA,A0093965, 02/06/2020,AAS0305210,"10,000.00",N,,N,N/A
Pendle Borough Council,Financial Services,Supplies and Services,Grant Funding,4737,REDACTED - PERSONAL DATA,A0093966, 02/06/2020,AAS0305211,"10,000.00",N,,N,N/A
Pendle Borough Council,Financial Services,Supplies and Services,Grant Funding,4737,REDACTED - PERSONAL DATA,A0093967, 02/06/2020,AAS0305212,"10,000.00",N,,N,N/A
Pendle Borough Council,Financial Services,Supplies and Services,Grant Funding,4737,REDACTED - PERSONAL DATA,A0093970, 05/06/2020,AAS0305313,"10,000.00",N,,N,N/A
Pendle Borough Council,Financial Services,Supplies and Services,Grant Funding,4737,REDACTED - PERSONAL DATA,A0093971, 05/06/2020,AAS0305314,"10,000.00",N,,N,N/A
Pendle Borough Council,Financial Services,Supplies and Services,Grant Funding,4737,REDACTED - PERSONAL DATA,A0093972, 05/06/2020,AAS0305315,"10,000.00",N,,N,N/A
Pendle Borough Council,Financial Services,Supplies and Services,Grant Funding,4737,REDACTED - PERSONAL DATA,A0093973, 05/06/2020,AAS0305316,"10,000.00",N,,N,N/A
Pendle Borough Council,Financial Services,Supplies and Services,Grant Funding,4737,REDACTED - PERSONAL DATA,A0093974, 05/06/2020,AAS0305317,"10,000.00",N,,N,N/A
Pendle Borough Council,Financial Services,Supplies and Services,Grant Funding,4737,REDACTED - PERSONAL DATA,A0093975, 05/06/2020,AAS0305318,"10,000.00",N,,N,N/A
Pendle Borough Council,Financial Services,Supplies and Services,Grant Funding,4737,REDACTED - PERSONAL DATA,A0093976, 05/06/2020,AAS0305319,"10,000.00",N,,N,N/A
Pendle Borough Council,Financial Services,Supplies and Services,Grant Funding,4737,REDACTED - PERSONAL DATA,A0093977, 16/06/2020,AAS0305542,"10,000.00",N,,N,N/A
Pendle Borough Council,Financial Services,Supplies and Services,Grant Funding,4737,REDACTED - PERSONAL DATA,A0093978, 05/06/2020,AAS0305320,"10,000.00",N,,N,N/A
Pendle Borough Council,Financial Services,Supplies and Services,Grant Funding,4737,REDACTED - PERSONAL DATA,A0093979, 05/06/2020,AAS0305321,"10,000.00",N,,N,N/A
Pendle Borough Council,Financial Services,Supplies and Services,Grant Funding,4737,REDACTED - PERSONAL DATA,A0093980, 05/06/2020,AAS0305322,"10,000.00",N,,N,N/A
Pendle Borough Council,Financial Services,Supplies and Services,Grant Funding,4737,REDACTED - PERSONAL DATA,A0093981, 05/06/2020,AAS0305323,"10,000.00",N,,N,N/A
Pendle Borough Council,Financial Services,Supplies and Services,Grant Funding,4737,REDACTED - PERSONAL DATA,A0093982, 05/06/2020,AAS0305324,"10,000.00",N,,N,N/A
Pendle Borough Council,Financial Services,Supplies and Services,Grant Funding,4737,REDACTED - PERSONAL DATA,A0093983, 05/06/2020,AAS0305325,"10,000.00",N,,N,N/A
Pendle Borough Council,Financial Services,Supplies and Services,Grant Funding,4737,REDACTED - PERSONAL DATA,A0093984, 05/06/2020,AAS0305326,"10,000.00",N,,N,N/A
Pendle Borough Council,Financial Services,Supplies and Services,Grant Funding,4737,REDACTED - PERSONAL DATA,A0093985, 05/06/2020,AAS0305327,"10,000.00",N,,N,N/A
Pendle Borough Council,Financial Services,Supplies and Services,Grant Funding,4737,REDACTED - PERSONAL DATA,A0093986, 05/06/2020,AAS0305328,"10,000.00",N,,N,N/A
Pendle Borough Council,Financial Services,Supplies and Services,Grant Funding,4737,REDACTED - PERSONAL DATA,A0093987, 05/06/2020,AAS0305329,"25,000.00",N,,N,N/A
Pendle Borough Council,Financial Services,Supplies and Services,Grant Funding,4737,REDACTED - PERSONAL DATA,A0093988, 05/06/2020,AAS0305330,"10,000.00",N,,N,N/A
Pendle Borough Council,Financial Services,Supplies and Services,Grant Funding,4737,REDACTED - PERSONAL DATA,A0093990, 09/06/2020,AAS0305362,"10,000.00",N,,N,N/A
Pendle Borough Council,Financial Services,Supplies and Services,Grant Funding,4737,REDACTED - PERSONAL DATA,A0093991, 09/06/2020,AAS0305363,"10,000.00",N,,N,N/A
Pendle Borough Council,Financial Services,Supplies and Services,Grant Funding,4737,REDACTED - PERSONAL DATA,A0093992, 09/06/2020,AAS0305364,"10,000.00",N,,N,N/A
Pendle Borough Council,Financial Services,Supplies and Services,Grant Funding,4737,REDACTED - PERSONAL DATA,A0093993, 09/06/2020,AAS0305365,"10,000.00",N,,N,N/A
Pendle Borough Council,Financial Services,Supplies and Services,Grant Funding,4737,REDACTED - PERSONAL DATA,A0093994, 09/06/2020,AAS0305366,"10,000.00",N,,N,N/A
Pendle Borough Council,Financial Services,Supplies and Services,Grant Funding,4737,REDACTED - PERSONAL DATA,A0093995, 09/06/2020,AAS0305367,"10,000.00",N,,N,N/A
Pendle Borough Council,Financial Services,Supplies and Services,Grant Funding,4737,REDACTED - PERSONAL DATA,A0093996, 09/06/2020,AAS0305368,"10,000.00",N,,N,N/A
Pendle Borough Council,Financial Services,Supplies and Services,Grant Funding,4737,REDACTED - PERSONAL DATA,A0093997, 09/06/2020,AAS0305369,"10,000.00",N,,N,N/A
Pendle Borough Council,Financial Services,Supplies and Services,Grant Funding,4737,REDACTED - PERSONAL DATA,A0093998, 09/06/2020,AAS0305370,"10,000.00",N,,N,N/A
Pendle Borough Council,Financial Services,Supplies and Services,Grant Funding,4737,REDACTED - PERSONAL DATA,A0093999, 30/06/2020,AAS0305371,"10,000.00",N,,N,N/A
Pendle Borough Council,Financial Services,Supplies and Services,Grant Funding,4737,REDACTED - PERSONAL DATA,A0094000, 09/06/2020,AAS0305372,"10,000.00",N,,N,N/A
Pendle Borough Council,Financial Services,Supplies and Services,Grant Funding,4737,REDACTED - PERSONAL DATA,A0094001, 09/06/2020,AAS0305373,"10,000.00",N,,N,N/A
Pendle Borough Council,Financial Services,Supplies and Services,Grant Funding,4737,REDACTED - PERSONAL DATA,A0094002, 09/06/2020,AAS0305374,"10,000.00",N,,N,N/A
Pendle Borough Council,Financial Services,Supplies and Services,Grant Funding,4737,REDACTED - PERSONAL DATA,A0094003, 09/06/2020,AAS0305375,"10,000.00",N,,N,N/A
Pendle Borough Council,Financial Services,Supplies and Services,Grant Funding,4737,REDACTED - PERSONAL DATA,A0094004, 09/06/2020,AAS0305376,"10,000.00",N,,N,N/A
Pendle Borough Council,Financial Services,Supplies and Services,Grant Funding,4737,REDACTED - PERSONAL DATA,A0094005, 09/06/2020,AAS0305377,"10,000.00",N,,N,N/A
Pendle Borough Council,Financial Services,Supplies and Services,Grant Funding,4737,REDACTED - PERSONAL DATA,A0094006, 09/06/2020,AAS0305378,"10,000.00",N,,N,N/A
Pendle Borough Council,Financial Services,Supplies and Services,Grant Funding,4737,REDACTED - PERSONAL DATA,A0094007, 09/06/2020,AAS0305379,"10,000.00",N,,N,N/A
Pendle Borough Council,Parks & Recreation Services,Premises Related Expense,Grounds : R & M : Day to Day : Routine,2101,CONSERVATION CONTRACTS NORTH WEST LIMITED,A0094008, 25/06/2020,PCO0305657,230.00,N,,N,N/A
Pendle Borough Council,Financial Services,Supplies and Services,Other Expenses,4705,ALDI STORES LIMITED,A0094009, 09/06/2020,AAS0305447,"1,506.92",N,,N,N/A
Pendle Borough Council,Financial Services,Supplies and Services,Grant Funding,4737,REDACTED - PERSONAL DATA,A0094010, 12/06/2020,AAS0305453,"10,000.00",N,,N,N/A
Pendle Borough Council,Financial Services,Supplies and Services,Grant Funding,4737,REDACTED - PERSONAL DATA,A0094011, 12/06/2020,AAS0305454,"10,000.00",N,,N,N/A
Pendle Borough Council,Financial Services,Supplies and Services,Grant Funding,4737,REDACTED - PERSONAL DATA,A0094012, 12/06/2020,AAS0305455,"10,000.00",N,,N,N/A
Pendle Borough Council,Financial Services,Supplies and Services,Grant Funding,4737,REDACTED - PERSONAL DATA,A0094013, 12/06/2020,AAS0305456,"10,000.00",N,,N,N/A
Pendle Borough Council,Financial Services,Supplies and Services,Grant Funding,4737,REDACTED - PERSONAL DATA,A0094014, 12/06/2020,AAS0305457,"10,000.00",N,,N,N/A
Pendle Borough Council,Financial Services,Supplies and Services,Grant Funding,4737,REDACTED - PERSONAL DATA,A0094015, 12/06/2020,AAS0305458,"10,000.00",N,,N,N/A
Pendle Borough Council,Financial Services,Supplies and Services,Grant Funding,4737,REDACTED - PERSONAL DATA,A0094016, 12/06/2020,AAS0305459,"10,000.00",N,,N,N/A
Pendle Borough Council,Financial Services,Supplies and Services,Grant Funding,4737,REDACTED - PERSONAL DATA,A0094017, 12/06/2020,AAS0305460,"10,000.00",N,,N,N/A
Pendle Borough Council,Financial Services,Supplies and Services,Grant Funding,4737,REDACTED - PERSONAL DATA,A0094018, 12/06/2020,AAS0305461,"10,000.00",N,,N,N/A
Pendle Borough Council,Financial Services,Supplies and Services,Grant Funding,4737,REDACTED - PERSONAL DATA,A0094019, 12/06/2020,AAS0305462,"10,000.00",N,,N,N/A
Pendle Borough Council,Financial Services,Supplies and Services,Grant Funding,4737,REDACTED - PERSONAL DATA,A0094020, 12/06/2020,AAS0305463,"10,000.00",N,,N,N/A
Pendle Borough Council,Financial Services,Supplies and Services,Grant Funding,4737,REDACTED - PERSONAL DATA,A0094021, 12/06/2020,AAS0305464,"10,000.00",N,,N,N/A
Pendle Borough Council,Financial Services,Supplies and Services,Grant Funding,4737,REDACTED - PERSONAL DATA,A0094022, 12/06/2020,AAS0305465,"10,000.00",N,,N,N/A
Pendle Borough Council,Financial Services,Supplies and Services,Grant Funding,4737,REDACTED - PERSONAL DATA,A0094023, 12/06/2020,AAS0305466,"10,000.00",N,,N,N/A
Pendle Borough Council,Financial Services,Supplies and Services,Grant Funding,4737,REDACTED - PERSONAL DATA,A0094024, 12/06/2020,AAS0305467,"10,000.00",N,,N,N/A
Pendle Borough Council,Financial Services,Supplies and Services,Grant Funding,4737,REDACTED - PERSONAL DATA,A0094025, 12/06/2020,AAS0305468,"10,000.00",N,,N,N/A
Pendle Borough Council,Financial Services,Supplies and Services,Grant Funding,4737,REDACTED - PERSONAL DATA,A0094026, 12/06/2020,AAS0305469,"25,000.00",N,,N,N/A
Pendle Borough Council,Financial Services,Supplies and Services,Grant Funding,4737,REDACTED - PERSONAL DATA,A0094028, 16/06/2020,AAS0305535,"10,000.00",N,,N,N/A
Pendle Borough Council,Financial Services,Supplies and Services,Grant Funding,4737,REDACTED - PERSONAL DATA,A0094029, 16/06/2020,AAS0305536,"10,000.00",N,,N,N/A
Pendle Borough Council,Financial Services,Supplies and Services,Grant Funding,4737,REDACTED - PERSONAL DATA,A0094030, 16/06/2020,AAS0305537,"25,000.00",N,,N,N/A
Pendle Borough Council,Financial Services,Supplies and Services,Grant Funding,4737,REDACTED - PERSONAL DATA,A0094031, 16/06/2020,AAS0305538,"10,000.00",N,,N,N/A
Pendle Borough Council,Financial Services,Supplies and Services,Grant Funding,4737,REDACTED - PERSONAL DATA,A0094032, 16/06/2020,AAS0305539,"10,000.00",N,,N,N/A
Pendle Borough Council,Financial Services,Supplies and Services,Grant Funding,4737,REDACTED - PERSONAL DATA,A0094033, 16/06/2020,AAS0305540,"10,000.00",N,,N,N/A
Pendle Borough Council,Financial Services,Supplies and Services,Grant Funding,4737,REDACTED - PERSONAL DATA,A0094034, 16/06/2020,AAS0305541,"10,000.00",N,,N,N/A
Pendle Borough Council,Operational Services,Supplies and Services,EFM Materials,4004,CMT EQUIPMENT LIMITED,A0094035, 25/06/2020,OPS0305675,427.50,N,,N,N/A
Pendle Borough Council,Operational Services,Supplies and Services,EFM Materials,4004,CMT EQUIPMENT LIMITED,A0094035, 25/06/2020,OPS0305675,547.50,N,,N,N/A
Pendle Borough Council,Financial Services,Supplies and Services,Grant Funding,4737,REDACTED - PERSONAL DATA,A0094036, 23/06/2020,AAS0305612,"10,000.00",N,,N,N/A
Pendle Borough Council,Financial Services,Supplies and Services,Grant Funding,4737,REDACTED - PERSONAL DATA,A0094037, 23/06/2020,AAS0305613,"10,000.00",N,,N,N/A
Pendle Borough Council,Financial Services,Supplies and Services,Grant Funding,4737,REDACTED - PERSONAL DATA,A0094038, 23/06/2020,AAS0305614,"10,000.00",N,,N,N/A
Pendle Borough Council,Financial Services,Supplies and Services,Grant Funding,4737,REDACTED - PERSONAL DATA,A0094039, 23/06/2020,AAS0305615,"10,000.00",N,,N,N/A
Pendle Borough Council,Financial Services,Supplies and Services,Grant Funding,4737,REDACTED - PERSONAL DATA,A0094040, 23/06/2020,AAS0305616,"10,000.00",N,,N,N/A
Pendle Borough Council,Financial Services,Supplies and Services,Grant Funding,4737,REDACTED - PERSONAL DATA,A0094041, 23/06/2020,AAS0305617,"10,000.00",N,,N,N/A
Pendle Borough Council,Financial Services,Supplies and Services,Grant Funding,4737,REDACTED - PERSONAL DATA,A0094042, 23/06/2020,AAS0305618,"10,000.00",N,,N,N/A
Pendle Borough Council,Financial Services,Supplies and Services,Grant Funding,4737,REDACTED - PERSONAL DATA,A0094043, 23/06/2020,AAS0305619,"10,000.00",N,,N,N/A
Pendle Borough Council,Financial Services,Supplies and Services,Grant Funding,4737,REDACTED - PERSONAL DATA,A0094044, 23/06/2020,AAS0305620,"10,000.00",N,,N,N/A
Pendle Borough Council,Financial Services,Supplies and Services,Grant Funding,4737,REDACTED - PERSONAL DATA,A0094045, 23/06/2020,AAS0305621,"10,000.00",N,,N,N/A
Pendle Borough Council,Financial Services,Supplies and Services,Grant Funding,4737,REDACTED - PERSONAL DATA,A0094046, 23/06/2020,AAS0305622,"10,000.00",N,,N,N/A
Pendle Borough Council,Financial Services,Supplies and Services,Grant Funding,4737,REDACTED - PERSONAL DATA,A0094047, 23/06/2020,AAS0305623,"10,000.00",N,,N,N/A
Pendle Borough Council,Financial Services,Supplies and Services,Grant Funding,4737,REDACTED - PERSONAL DATA,A0094048, 23/06/2020,AAS0305624,"25,000.00",N,,N,N/A
Pendle Borough Council,Financial Services,Supplies and Services,Grant Funding,4737,REDACTED - PERSONAL DATA,A0094049, 23/06/2020,AAS0305625,"10,000.00",N,,N,N/A
Pendle Borough Council,Financial Services,Supplies and Services,Grant Funding,4737,REDACTED - PERSONAL DATA,A0094050, 23/06/2020,AAS0305626,"10,000.00",N,,N,N/A
Pendle Borough Council,Financial Services,Supplies and Services,Grant Funding,4737,REDACTED - PERSONAL DATA,A0094051, 23/06/2020,AAS0305627,"10,000.00",N,,N,N/A
Pendle Borough Council,Financial Services,Supplies and Services,Grant Funding,4737,REDACTED - PERSONAL DATA,A0094052, 23/06/2020,AAS0305628,"10,000.00",N,,N,N/A
Pendle Borough Council,Financial Services,Supplies and Services,Grant Funding,4737,REDACTED - PERSONAL DATA,A0094053, 23/06/2020,AAS0305629,"10,000.00",N,,N,N/A
Pendle Borough Council,Financial Services,Supplies and Services,Grant Funding,4737,REDACTED - PERSONAL DATA,A0094054, 26/06/2020,AAS0305708,"10,000.00",N,,N,N/A
Pendle Borough Council,Financial Services,Supplies and Services,Grant Funding,4737,REDACTED - PERSONAL DATA,A0094055, 26/06/2020,AAS0305709,"10,000.00",N,,N,N/A
Pendle Borough Council,Financial Services,Supplies and Services,Grant Funding,4737,REDACTED - PERSONAL DATA,A0094056, 26/06/2020,AAS0305710,"10,000.00",N,,N,N/A
Pendle Borough Council,Financial Services,Supplies and Services,Grant Funding,4737,REDACTED - PERSONAL DATA,A0094057, 26/06/2020,AAS0305711,"10,000.00",N,,N,N/A
Pendle Borough Council,Financial Services,Supplies and Services,Grant Funding,4737,REDACTED - PERSONAL DATA,A0094058, 26/06/2020,AAS0305712,"10,000.00",N,,N,N/A
Pendle Borough Council,Financial Services,Supplies and Services,Grant Funding,4737,REDACTED - PERSONAL DATA,A0094059, 26/06/2020,AAS0305713,"10,000.00",N,,N,N/A
Pendle Borough Council,Financial Services,Supplies and Services,Grant Funding,4737,REDACTED - PERSONAL DATA,A0094060, 26/06/2020,AAS0305714,"10,000.00",N,,N,N/A
Pendle Borough Council,Financial Services,Supplies and Services,Grant Funding,4737,REDACTED - PERSONAL DATA,A0094061, 26/06/2020,AAS0305715,"10,000.00",N,,N,N/A
Pendle Borough Council,Financial Services,Supplies and Services,Grant Funding,4737,REDACTED - PERSONAL DATA,A0094062, 26/06/2020,AAS0305716,"10,000.00",N,,N,N/A
Pendle Borough Council,Financial Services,Supplies and Services,Grant Funding,4737,REDACTED - PERSONAL DATA,A0094063, 26/06/2020,AAS0305717,"10,000.00",N,,N,N/A
Pendle Borough Council,Financial Services,Supplies and Services,Grant Funding,4737,REDACTED - PERSONAL DATA,A0094064, 26/06/2020,AAS0305718,"10,000.00",N,,N,N/A
Pendle Borough Council,Financial Services,Supplies and Services,Grant Funding,4737,REDACTED - PERSONAL DATA,A0094065, 29/06/2020,AAS0305726,"10,000.00",N,,N,N/A
Pendle Borough Council,Financial Services,Supplies and Services,Grant Funding,4737,REDACTED - PERSONAL DATA,A0094066, 29/06/2020,AAS0305727,"10,000.00",N,,N,N/A
Pendle Borough Council,Financial Services,Supplies and Services,Grant Funding,4737,REDACTED - PERSONAL DATA,A0094068, 29/06/2020,AAS0305729,"10,000.00",N,,N,N/A
Pendle Borough Council,Financial Services,Supplies and Services,Grant Funding,4737,REDACTED - PERSONAL DATA,A0094069, 29/06/2020,AAS0305730,"5,000.00",N,,N,N/A
Pendle Borough Council,Financial Services,Supplies and Services,Grant Funding,4737,REDACTED - PERSONAL DATA,A0094070, 29/06/2020,AAS0305731,"5,000.00",N,,N,N/A
Pendle Borough Council,Financial Services,Supplies and Services,Grant Funding,4737,REDACTED - PERSONAL DATA,A0094071, 29/06/2020,AAS0305732,"10,000.00",N,,N,N/A
Pendle Borough Council,Financial Services,Supplies and Services,Grant Funding,4737,REDACTED - PERSONAL DATA,A0094072, 29/06/2020,AAS0305733,"5,000.00",N,,N,N/A
Pendle Borough Council,Financial Services,Supplies and Services,Grant Funding,4737,REDACTED - PERSONAL DATA,A0094073, 29/06/2020,AAS0305734,"5,000.00",N,,N,N/A
Pendle Borough Council,Financial Services,Supplies and Services,Grant Funding,4737,REDACTED - PERSONAL DATA,A0094074, 29/06/2020,AAS0305736,"5,000.00",N,,N,N/A
Pendle Borough Council,Financial Services,Supplies and Services,Grant Funding,4737,REDACTED - PERSONAL DATA,A0094075, 29/06/2020,AAS0305737,"5,000.00",N,,N,N/A
Pendle Borough Council,Financial Services,Supplies and Services,Grant Funding,4737,REDACTED - PERSONAL DATA,A0094076, 29/06/2020,AAS0305738,"5,000.00",N,,N,N/A
Pendle Borough Council,Financial Services,Supplies and Services,Grant Funding,4737,REDACTED - PERSONAL DATA,A0094077, 29/06/2020,AAS0305739,"5,000.00",N,,N,N/A
Pendle Borough Council,Financial Services,Supplies and Services,Grant Funding,4737,REDACTED - PERSONAL DATA,A0094078, 29/06/2020,AAS0305740,"10,000.00",N,,N,N/A
Pendle Borough Council,Financial Services,Supplies and Services,Grant Funding,4737,REDACTED - PERSONAL DATA,A0094079, 29/06/2020,AAS0305741,"5,000.00",N,,N,N/A
Pendle Borough Council,Financial Services,Supplies and Services,Grant Funding,4737,REDACTED - PERSONAL DATA,A0094080, 29/06/2020,AAS0305742,"5,000.00",N,,N,N/A
Pendle Borough Council,Financial Services,Supplies and Services,Grant Funding,4737,REDACTED - PERSONAL DATA,A0094081, 29/06/2020,AAS0305743,"10,000.00",N,,N,N/A
Pendle Borough Council,Financial Services,Supplies and Services,Grant Funding,4737,REDACTED - PERSONAL DATA,A0094082, 29/06/2020,AAS0305744,"10,000.00",N,,N,N/A
Pendle Borough Council,Financial Services,Supplies and Services,Grant Funding,4737,REDACTED - PERSONAL DATA,A0094083, 29/06/2020,AAS0305745,"5,000.00",N,,N,N/A
Pendle Borough Council,Financial Services,Supplies and Services,Grant Funding,4737,REDACTED - PERSONAL DATA,A0094084, 29/06/2020,AAS0305746,"10,000.00",N,,N,N/A
Pendle Borough Council,Financial Services,Supplies and Services,Grant Funding,4737,REDACTED - PERSONAL DATA,A0094085, 29/06/2020,AAS0305747,"10,000.00",N,,N,N/A
Pendle Borough Council,Financial Services,Supplies and Services,Grant Funding,4737,REDACTED - PERSONAL DATA,A0094086, 29/06/2020,AAS0305748,"10,000.00",N,,N,N/A
Pendle Borough Council,Financial Services,Supplies and Services,Grant Funding,4737,REDACTED - PERSONAL DATA,A0094087, 29/06/2020,AAS0305749,"5,000.00",N,,N,N/A
Pendle Borough Council,Financial Services,Supplies and Services,Grant Funding,4737,REDACTED - PERSONAL DATA,A0094088, 29/06/2020,AAS0305750,"10,000.00",N,,N,N/A
Pendle Borough Council,Financial Services,Supplies and Services,Grant Funding,4737,REDACTED - PERSONAL DATA,A0094089, 29/06/2020,AAS0305751,"10,000.00",N,,N,N/A
Pendle Borough Council,Financial Services,Supplies and Services,Grant Funding,4737,REDACTED - PERSONAL DATA,A0094090, 29/06/2020,AAS0305752,"5,000.00",N,,N,N/A
Pendle Borough Council,Financial Services,Supplies and Services,Grant Funding,4737,REDACTED - PERSONAL DATA,A0094091, 29/06/2020,AAS0305753,"5,000.00",N,,N,N/A
Pendle Borough Council,Financial Services,Supplies and Services,Grant Funding,4737,REDACTED - PERSONAL DATA,A0094092, 29/06/2020,AAS0305754,"10,000.00",N,,N,N/A
Pendle Borough Council,Financial Services,Supplies and Services,Grant Funding,4737,REDACTED - PERSONAL DATA,A0094093, 29/06/2020,AAS0305755,"5,000.00",N,,N,N/A
Pendle Borough Council,Financial Services,Supplies and Services,Grant Funding,4737,REDACTED - PERSONAL DATA,A0094094, 29/06/2020,AAS0305756,"10,000.00",N,,N,N/A
Pendle Borough Council,Financial Services,Supplies and Services,Grant Funding,4737,REDACTED - PERSONAL DATA,A0094095, 29/06/2020,AAS0305757,"10,000.00",N,,N,N/A
Pendle Borough Council,Financial Services,Supplies and Services,Grant Funding,4737,REDACTED - PERSONAL DATA,A0094096, 29/06/2020,AAS0305758,"5,000.00",N,,N,N/A
Pendle Borough Council,Financial Services,Supplies and Services,Grant Funding,4737,REDACTED - PERSONAL DATA,A0094097, 29/06/2020,AAS0305759,"10,000.00",N,,N,N/A
Pendle Borough Council,Financial Services,Supplies and Services,Grant Funding,4737,REDACTED - PERSONAL DATA,A0094098, 29/06/2020,AAS0305761,"5,000.00",N,,N,N/A
Pendle Borough Council,Financial Services,Supplies and Services,Grant Funding,4737,REDACTED - PERSONAL DATA,A0094099, 29/06/2020,AAS0305762,"10,000.00",N,,N,N/A
Pendle Borough Council,Financial Services,Supplies and Services,Grant Funding,4737,REDACTED - PERSONAL DATA,A0094100, 29/06/2020,AAS0305763,"10,000.00",N,,N,N/A
Pendle Borough Council,Financial Services,Supplies and Services,Grant Funding,4737,REDACTED - PERSONAL DATA,A0094101, 29/06/2020,AAS0305764,"10,000.00",N,,N,N/A
Pendle Borough Council,Financial Services,Supplies and Services,Grant Funding,4737,REDACTED - PERSONAL DATA,A0094102, 29/06/2020,AAS0305765,"5,000.00",N,,N,N/A
Pendle Borough Council,Financial Services,Supplies and Services,Grant Funding,4737,REDACTED - PERSONAL DATA,A0094103, 29/06/2020,AAS0305766,"5,000.00",N,,N,N/A
Pendle Borough Council,Financial Services,Supplies and Services,Grant Funding,4737,REDACTED - PERSONAL DATA,A0094104, 29/06/2020,AAS0305767,"10,000.00",N,,N,N/A
Pendle Borough Council,Financial Services,Supplies and Services,Grant Funding,4737,REDACTED - PERSONAL DATA,A0094105, 29/06/2020,AAS0305768,"5,000.00",N,,N,N/A
Pendle Borough Council,Financial Services,Supplies and Services,Grant Funding,4737,REDACTED - PERSONAL DATA,A0094106, 29/06/2020,AAS0305770,"10,000.00",N,,N,N/A
Pendle Borough Council,Financial Services,Supplies and Services,Grant Funding,4737,REDACTED - PERSONAL DATA,A0094107, 29/06/2020,AAS0305771,"5,000.00",N,,N,N/A
Pendle Borough Council,Financial Services,Supplies and Services,Grant Funding,4737,REDACTED - PERSONAL DATA,A0094108, 29/06/2020,AAS0305772,"10,000.00",N,,N,N/A
Pendle Borough Council,Financial Services,Supplies and Services,Grant Funding,4737,REDACTED - PERSONAL DATA,A0094109, 29/06/2020,AAS0305773,"5,000.00",N,,N,N/A
Pendle Borough Council,Financial Services,Supplies and Services,Grant Funding,4737,REDACTED - PERSONAL DATA,A0094110, 29/06/2020,AAS0305774,"5,000.00",N,,N,N/A
Pendle Borough Council,Financial Services,Supplies and Services,Grant Funding,4737,REDACTED - PERSONAL DATA,A0094111, 29/06/2020,AAS0305775,"5,000.00",N,,N,N/A
Pendle Borough Council,Financial Services,Supplies and Services,Grant Funding,4737,REDACTED - PERSONAL DATA,A0094112, 29/06/2020,AAS0305776,"10,000.00",N,,N,N/A
Pendle Borough Council,Financial Services,Supplies and Services,Grant Funding,4737,REDACTED - PERSONAL DATA,A0094113, 29/06/2020,AAS0305777,"10,000.00",N,,N,N/A
Pendle Borough Council,Financial Services,Supplies and Services,Grant Funding,4737,REDACTED - PERSONAL DATA,A0094114, 29/06/2020,AAS0305778,"10,000.00",N,,N,N/A
Pendle Borough Council,Financial Services,Supplies and Services,Grant Funding,4737,REDACTED - PERSONAL DATA,A0094115, 29/06/2020,AAS0305779,"5,000.00",N,,N,N/A
Pendle Borough Council,Financial Services,Supplies and Services,Grant Funding,4737,REDACTED - PERSONAL DATA,A0094116, 29/06/2020,AAS0305780,"10,000.00",N,,N,N/A
Pendle Borough Council,Financial Services,Supplies and Services,Grant Funding,4737,REDACTED - PERSONAL DATA,A0094117, 29/06/2020,AAS0305782,"5,000.00",N,,N,N/A
Pendle Borough Council,Financial Services,Supplies and Services,Grant Funding,4737,REDACTED - PERSONAL DATA,A0094118, 29/06/2020,AAS0305783,"10,000.00",N,,N,N/A
Pendle Borough Council,Financial Services,Supplies and Services,Grant Funding,4737,REDACTED - PERSONAL DATA,A0094119, 29/06/2020,AAS0305784,"10,000.00",N,,N,N/A
Pendle Borough Council,Financial Services,Supplies and Services,Grant Funding,4737,REDACTED - PERSONAL DATA,A0094120, 29/06/2020,AAS0305735,"5,000.00",N,,N,N/A
Pendle Borough Council,Financial Services,Supplies and Services,Grant Funding,4737,REDACTED - PERSONAL DATA,A0094121, 29/06/2020,AAS0305760,"5,000.00",N,,N,N/A
Pendle Borough Council,Financial Services,Supplies and Services,Grant Funding,4737,REDACTED - PERSONAL DATA,A0094122, 29/06/2020,AAS0305769,"5,000.00",N,,N,N/A
Pendle Borough Council,Financial Services,Supplies and Services,Grant Funding,4737,REDACTED - PERSONAL DATA,A0094123, 29/06/2020,AAS0305781,"5,000.00",N,,N,N/A
Pendle Borough Council,Financial Services,Supplies and Services,Grant Funding,4737,REDACTED - PERSONAL DATA,A0094124, 29/06/2020,AAS0305785,"5,000.00",N,,N,N/A
Pendle Borough Council,Financial Services,Supplies and Services,Grant Funding,4737,REDACTED - PERSONAL DATA,A0094125, 30/06/2020,AAS0305792,"5,000.00",N,,N,N/A
Pendle Borough Council,Financial Services,Supplies and Services,Grant Funding,4737,REDACTED - PERSONAL DATA,A0094126, 30/06/2020,AAS0305793,"5,000.00",N,,N,N/A
Pendle Borough Council,Financial Services,Supplies and Services,Grant Funding,4737,REDACTED - PERSONAL DATA,A0094127, 30/06/2020,AAS0305794,"5,000.00",N,,N,N/A
Pendle Borough Council,Financial Services,Supplies and Services,Grant Funding,4737,REDACTED - PERSONAL DATA,A0094128, 30/06/2020,AAS0305795,"5,000.00",N,,N,N/A
Pendle Borough Council,Financial Services,Supplies and Services,Grant Funding,4737,REDACTED - PERSONAL DATA,A0094129, 30/06/2020,AAS0305796,"10,000.00",N,,N,N/A
Pendle Borough Council,Financial Services,Supplies and Services,Grant Funding,4737,REDACTED - PERSONAL DATA,A0094130, 30/06/2020,AAS0305797,"10,000.00",N,,N,N/A
Pendle Borough Council,Financial Services,Supplies and Services,Grant Funding,4737,REDACTED - PERSONAL DATA,A0094131, 30/06/2020,AAS0305803,"10,000.00",N,,N,N/A
Pendle Borough Council,Financial Services,Supplies and Services,Grant Funding,4737,REDACTED - PERSONAL DATA,A0094132, 30/06/2020,AAS0305804,"10,000.00",N,,N,N/A
Pendle Borough Council,Financial Services,Supplies and Services,Grant Funding,4737,REDACTED - PERSONAL DATA,A0094133, 30/06/2020,AAS0305805,"10,000.00",N,,N,N/A
Pendle Borough Council,Financial Services,Supplies and Services,Grant Funding,4737,REDACTED - PERSONAL DATA,A0094134, 30/06/2020,AAS0305806,"10,000.00",N,,N,N/A
Pendle Borough Council,Financial Services,Supplies and Services,Grant Funding,4737,REDACTED - PERSONAL DATA,A0094135, 30/06/2020,AAS0305807,"10,000.00",N,,N,N/A
Pendle Borough Council,Financial Services,Supplies and Services,Grant Funding,4737,REDACTED - PERSONAL DATA,A0094136, 30/06/2020,AAS0305822,"10,000.00",N,,N,N/A
Pendle Borough Council,Financial Services,Supplies and Services,Grant Funding,4737,REDACTED - PERSONAL DATA,A0094137, 30/06/2020,AAS0305823,"5,000.00",N,,N,N/A
